Cogmind - Beta 15 @@@ ROGUE MODE // 2025.07.25 @ 20:15:31 Player: C0-2MO Result: Escaped! Performance ------------- Evolutions (9) 4500 Regions Visited (33) 6600 Robots Destroyed (170) 850 Value Destroyed (7102) 7102 Prototype IDs (168) 3360 Alien Tech Used (10) 2000 Bonus (38179) 38179 TOTAL SCORE: 62591 Bonus ------- High Alert Combat Kills 1914 Follower Combat Kills 1758 Network Hubs Disabled 200 Registered with UFD 300 Met Optimus in HQ 500 Met Imprinter 300 Met Zhirov 300 Built Enhanced Grunts 300 A7 Reached Mainframe 300 Scanned by Researcher 500 Destroyed Superfortress 15000 Met Optimus at Protoforge 1000 Completed Drillbomb Mission10000 Optimus Survived to 0b1 3000 Win 3000 Friendly Fire -193 Cogmind --------- Core Integrity 1261/1600 Matter 26/300 Energy 52/100 System Corruption 9% Temperature Cool (10) Movement Flying (30) Location To Epsilon Eridani Parts ------- > --- POWER (2) -------- (None) > --- PROPULSION (10) -- Field Propulsion Array Field Propulsion Array Q-thruster Impulse Thruster Array Impulse Thruster Array > --- UTILITY (11) ----- Medium Storage Unit Experimental Active Sensor Suite Advanced Targeting Computer Experimental Core Analyzer Graphene Brace Concept Navigation Harness > --- WEAPON (2) ------- (None) > --- INVENTORY (10) --- Particle Reactor Light Quantum Reactor High-powered Transdimensional Reconstructor Concept Plasma Driver Concept Rapid Grenade Launcher Advanced Remote Datajack Experimental Jetlance Peak State ------------ > --- POWER ------------ Quantum Reactor Light Quantum Reactor > --- PROPULSION ------- Impulse Thruster Array Impulse Thruster Array Impulse Thruster Array Impulse Thruster Array Experimental Biomechanical Wings Experimental Surge Thruster > --- UTILITY ---------- Large Storage Unit Experimental Optical Array Experimental Active Sensor Suite Experimental Targeting Computer Experimental Core Analyzer Concept Cloak Mesh Concept Cloak Mesh Graphene Brace Concept Navigation Harness > --- WEAPON ----------- Concept Miniperforator Experimental Jetlance > --- INVENTORY -------- Particle Reactor Impulse Thruster Array Impulse Thruster Array Partition Strike Chip Experimental Reaction Control System Advanced Phase Shifter Graphene Brace High-powered Transdimensional Reconstructor Concept Plasma Driver Concept Heavy Railcannon Concept Rapid Grenade Launcher [Rating: 242] Favorites ----------- Power Light Antimatter Reactor Engine Light Angular Momentum Engine Power Core Light Fission Core Reactor Light Antimatter Reactor Propulsion Cooled Nuclear Pulse Thruster Treads Light Treads Hover Unit Combat Airjet Flight Unit Cooled Nuclear Pulse Thruster Utility Advanced Hacking Suite Device Concept Cloak Mesh Storage Medium Storage Unit Processor Advanced Signal Interpreter Hackware Advanced Hacking Suite Protection Improved Propulsion Shielding Artifact Phase Redirector Weapon Plasma Sword Energy Gun Heavy Tesla Rifle Energy Cannon Enhanced Nova Cannon Ballistic Gun Assault Rifle Ballistic Cannon Concept Miniperforator Launcher Concept Rapid Grenade Launcher Special Weapon Remote Datajack Impact Weapon Thunder Hammer Slashing Weapon Plasma Sword Piercing Weapon Experimental Jetlance Special Melee Weapon Improved Datajack Build | -11 -10 -10 -8 -8 -6 -6 -6 -6 -6 -6 -6 -5 -5 -5 -5 -5 -5 -5 -5 -4 -4 -4 -4 -4 -4 -3 -3 -3 -2 -2 -2 -1 -1 ------- Run | Yrd Mat Sub Rec Scr Fac Was Fac Low Low Zio Dee Pro Fac Was Fac Ext Cet Arc Hub Fac Was Fac Upp Upp Zhi Pro Res Qua Res Tes Frg Acc Com Slots Evolved 18 | . . . . . 8 . . . . . . . 2 . . . . . . 2 . . . . . . 2 . 2 . . 2 . Power 1 | . . . . . . . . . . . . . 1 . . . . . . . . . . . . . . . . . . . . Propulsion 8 | . . . . . 3 . . . . . . . 1 . . . . . . . . . . . . . 2 . 2 . . . . Utility 9 | . . . . . 5 . . . . . . . . . . . . . . 2 . . . . . . . . . . . 2 . Weapon . | . . . . . . . . . . . . . . . . . . . . . . . . . . . . . . . . . . Parts Attached 293 | 4 9 6 . 10 27 2 16 2 . 3 . 1 19 1 26 7 2 2 3 5 . 10 1 1 5 3 28 9 16 4 49 14 8 Power 38 | . . . . 2 3 . 1 . . . . . 3 . 3 3 1 . . 2 . 2 . 1 . . 7 . . . 4 5 1 Engine 6 | . . . . 1 . . . . . . . . 1 . . 2 1 . . . . . . 1 . . . . . . . . . Core 14 | . . . . 1 3 . 1 . . . . . 2 . 3 1 . . . 2 . 1 . . . . . . . . . . . Reactor 18 | . . . . . . . . . . . . . . . . . . . . . . 1 . . . . 7 . . . 4 5 1 Propulsion 80 | 2 4 3 . 3 7 . 4 . . . . . 4 . 7 1 . . 2 1 . 3 . . 3 . 5 . 7 . 19 1 4 Treads 3 | 2 . . . 1 . . . . . . . . . . . . . . . . . . . . . . . . . . . . . Leg . | . . . . . . . . . . . . . . . . . . . . . . . . . . . . . . . . . . Wheel . | . . . . . . . . . . . . . . . . . . . . . . . . . . . . . . . . . . Hover 1 | . . . . . 1 . . . . . . . . . . . . . . . . . . . . . . . . . . . . Flight 76 | . 4 3 . 2 6 . 4 . . . . . 4 . 7 1 . . 2 1 . 3 . . 3 . 5 . 7 . 19 1 4 Utility 126 | 1 3 . . 3 15 2 11 . . 2 . 1 9 . 12 2 . . 1 2 . 3 1 . 2 2 12 4 9 1 19 7 2 Device 70 | 1 . . . 1 6 2 6 . . 2 . . 4 . 9 2 . . . 2 . 2 1 . . 1 8 1 6 . 12 4 . Storage 14 | . 1 . . 1 1 . . . . . . . . . 1 . . . . . . . . . 1 . 3 . . 1 3 1 1 Processor 13 | . 1 . . . 4 . . . . . . . . . . . . . . . . 1 . . . 1 . . 1 . 2 2 1 Hackware 19 | . . . . 1 3 . 4 . . . . 1 4 . 2 . . . 1 . . . . . . . 1 . 2 . . . . Protection 8 | . 1 . . . 1 . 1 . . . . . 1 . . . . . . . . . . . 1 . . 1 . . 2 . . Artifact 2 | . . . . . . . . . . . . . . . . . . . . . . . . . . . . 2 . . . . . Weapon 49 | 1 2 3 . 2 2 . . 2 . 1 . . 3 1 4 1 1 2 . . . 2 . . . 1 4 5 . 3 7 1 1 Energy Gun 3 | . . . . . . . . . . . . . . . . . . . . . . 1 . . . . . . . 2 . . . Energy Cannon 4 | . . . . . . . . . . . . . . 1 . . . 1 . . . . . . . . . . . 1 . . 1 Ballistic Gun 5 | 1 1 1 . . 1 . . . . . . . . . . . 1 . . . . . . . . . . . . . . . . Ballistic Cannon 4 | . 1 . . . . . . . . . . . . . . . . . . . . . . . . . . . . . 2 1 . Launcher 7 | . . . . 1 . . . . . . . . 1 . 1 . . . . . . . . . . . 2 . . . 2 . . Special Weapon 6 | . . 1 . . . . . 1 . 1 . . . . . . . . . . . . . . . 1 1 1 . . . . . Impact Weapon 1 | . . . . . . . . . . . . . . . 1 . . . . . . . . . . . . . . . . . . Slashing Weapon 9 | . . 1 . . 1 . . 1 . . . . 1 . . . . . . . . . . . . . 1 2 . . 2 . . Piercing Weapon 1 | . . . . . . . . . . . . . . . . . . . . . . . . . . . . . . . 1 . . Special Melee Weapon 9 | . . . . 1 . . . . . . . . 1 . 2 1 . 1 . . . 1 . . . . . 2 . . . . . Unidentified Prototypes 51 | . . . . . 2 . 1 . . . . . 3 . 9 . 1 1 . 1 . 4 . . 4 1 8 6 2 4 3 1 . Corrupted Parts 1 | . . . . 1 . . . . . . . . . . . . . . . . . . . . . . . . . . . . . System Corruption 3 | . . . . 3 . . . . . . . . . . . . . . . . . . . . . . . . . . . . . Parts Lost 81 | . . 2 . . 5 . . . . . 2 . 8 . 12 5 1 . 1 . . 4 . . . . . 1 2 . 23 8 7 Power 15 | . . . . . 1 . . . . . . . . . 3 1 . . . . . . . . . . . 1 . . 4 3 2 Propulsion 30 | . . 2 . . 1 . . . . . . . 3 . 5 . 1 . 1 . . 1 . . . . . . 1 . 13 1 1 Utility 28 | . . . . . 3 . . . . . 1 . 4 . 4 2 . . . . . 2 . . . . . . 1 . 5 3 3 Weapon 8 | . . . . . . . . . . . 1 . 1 . . 2 . . . . . 1 . . . . . . . . 1 1 1 Highest Loss Streak 13 | . . 2 . . 1 . . . . . 2 . 4 . 3 2 1 . 1 . . 2 . . . . . 1 1 . 13 3 5 To Critical Strikes . | . . . . . . . . . . . . . . . . . . . . . . . . . . . . . . . . . . Average Backups 9 | 1 6 7 7 8 9 10 9 10 10 9 9 9 8 10 8 8 9 8 8 8 9 9 10 10 9 9 9 12 13 13 7 11 9 Power 1 | . 1 1 1 . 1 1 . 1 1 1 1 1 1 1 . . 2 2 2 1 2 1 1 1 1 1 2 3 2 2 . 2 2 Propulsion 1 | . 2 3 1 1 . 1 1 2 2 2 2 2 1 1 1 . . . 1 1 1 1 2 2 1 1 . 1 . 1 . 1 1 Utility 3 | . 1 . 1 3 4 6 6 6 6 5 5 5 5 6 4 3 4 3 3 3 4 4 5 5 5 4 3 4 3 3 2 4 1 Weapon 1 | . . 1 3 2 1 2 1 . . . . . . . 1 2 1 2 2 2 2 1 2 2 2 2 2 1 1 1 2 3 2 Tool/Special . | . . . . . . . . . . . . . . . . . . . . . . . . . . . . . . . . . . Unused Backups 40 | . 2 1 . 3 6 . . . 1 . . . . 1 1 . . . . 2 . 2 . . . . 1 3 1 1 8 1 6 Power 5 | . . . . . 2 . . . . . . . . . . . . . . . . . . . . . . 1 1 . . . 1 Propulsion 6 | . 1 . . 1 . . . . . . . . . . . . . . . 1 . . . . . . . . . . 3 . . Utility 17 | . . 1 . 1 3 . . . . . . . . 1 1 . . . . 1 . 2 . . . . 1 . . . 2 1 3 Weapon 6 | . 1 . . 1 . . . . 1 . . . . . . . . . . . . . . . . . . . . 1 2 . . Tool/Special 6 | . . . . . 1 . . . . . . . . . . . . . . . . . . . . . . 2 . . 1 . 2 Average Slot Usage (%) 87 | . 64 81 71 85 92 98 99 97 99 97 97 86 93 96 99 87 82 85 92 86 89 87 81 84 85 89 94 98 94 95 77 69 63 Engine 1 | . . . . 5 . . . . . . . . . . . 4 5 5 5 4 . 1 10 10 10 10 . . . . . . . Core 3 | . . . . 5 6 6 5 6 6 6 6 6 10 11 10 4 5 5 5 5 10 6 . . . . . . . . . . . Reactor 3 | . . . . . . . . . . . . . . . . . . . . . . 1 . . . . 8 9 8 8 7 7 7 Flight 31 | . 21 27 28 28 32 33 33 33 33 33 33 33 34 35 34 29 29 29 29 26 26 21 21 21 26 31 37 38 42 43 31 21 19 Device 15 | . 1 . . 10 15 18 13 20 20 14 13 13 10 11 14 13 11 14 17 19 21 21 18 21 15 10 14 13 18 21 23 20 20 Storage 6 | . 10 14 14 14 6 6 6 6 6 6 6 6 5 5 5 5 5 5 5 5 5 5 5 5 6 10 9 9 4 4 3 4 4 Processor 5 | . 5 14 14 3 9 13 7 6 6 6 6 6 5 5 5 5 5 2 . . . 3 5 5 5 5 4 4 4 4 1 9 7 Hackware 8 | . . . . . 8 6 14 13 13 13 12 6 15 17 13 11 11 11 15 15 15 15 15 15 15 15 14 14 9 8 1 . . Slashing Weapon 4 | . . 3 14 14 5 6 6 7 6 6 6 6 5 5 4 5 5 5 5 3 5 3 . . . . 2 2 4 4 3 . . Special Melee Weapon 1 | . . . . 3 3 6 5 1 . . . . . . 4 3 . 3 5 5 5 4 . . . . . 3 . . . . . Peak Build Rating 242 | 4 7 11 10 22 63 60 77 81 81 80 78 71 96 96 109 98 105 105 112 116 116 128 113 113 120 124 157 169 202 201 238 242 230 Average Rating 118 | 2 4 8 9 15 52 55 67 78 80 77 76 68 86 90 94 93 94 100 109 111 116 118 110 113 111 115 140 149 189 200 206 231 212 On Entrance 95 | . 4 7 9 10 22 54 56 77 81 80 80 68 71 87 87 91 96 94 105 104 116 116 106 113 113 115 123 149 169 201 201 222 214 Naked Turns . | . . . . . . . . . . . . . . . . . . . . . . . . . . . . . . . . . . Heaviest Build 83 | 3 8 8 7 18 28 25 32 32 27 33 27 24 37 48 43 39 52 42 42 39 38 41 38 38 38 41 53 58 67 65 83 77 79 Greatest Support 83 | 3 40 8 8 19 28 28 34 34 34 34 34 34 43 42 46 43 43 42 42 40 39 41 40 40 40 41 68 59 82 83 83 80 80 Greatest Overweight (x) 22 | . 1 1 . 1 1 . . . . . . . . 1 . . 1 . . . . . . . 1 . 1 . . . 22 . . Average Overweight (x) . | . . . . . . . . . . . . . . . . . . . . . . . . . . . . . . . . . . Largest Inventory Capacity 15 | 5 8 8 8 10 10 10 10 10 10 10 10 10 10 10 10 10 10 10 10 10 10 10 10 10 10 10 15 15 15 15 15 15 15 Average Capacity 11 | 5 7 8 8 8 10 10 10 10 10 10 10 10 10 10 10 10 10 10 10 10 10 10 10 10 10 10 10 15 15 15 13 15 12 Most Carried 15 | 2 8 8 8 10 10 10 10 10 10 10 9 9 10 10 10 10 10 10 10 10 10 10 10 10 10 10 13 15 15 15 15 15 15 Average Carried 9 | 1 6 7 7 8 9 9 9 10 9 9 9 9 8 9 9 8 9 8 8 9 10 9 10 10 9 9 9 13 14 14 10 14 10 Final Capacity 15 | 5 8 8 8 10 10 10 10 10 10 10 10 10 10 10 10 10 10 10 10 10 10 10 10 10 10 10 15 15 15 15 15 15 10 Final Carried 15 | 2 8 6 8 10 10 10 10 10 10 9 9 9 10 10 8 10 10 7 9 10 10 10 10 10 10 10 13 15 15 15 14 12 7 Class Distribution -------------------- 30% | Hacker-Sprinter 18% | Hacker-Ninja 11% | Hacker-Scout 11% | Scavenger-Ninja 10% | Mutant 4% | Sprinter Dominant Class ---------------- Mutant | -10/Materials Mutant | -10/Subcaves Mutant | -8/Recycling Mutant | -8/Scraptown Sprinter | -6/Factory Infiltrator-Ninja | -6/Waste Hacker-Scout | -6/Factory Hacker-Scout | -6/Lower Caves Hacker-Scout | -6/Lower Caves Hacker-Scout | -6/Zion Hacker-Scout | -6/Deep Caves Scout | -5/Proximity Caves Hacker-Sprinter | -5/Factory Hacker-Sprinter | -5/Waste Hacker-Sprinter | -5/Factory Hacker-Sprinter | -5/Extension Hacker-Sprinter | -5/Cetus Hacker-Sprinter | -5/Archives Hacker-Sprinter | -5/Hub_04(d) Hacker-Sprinter | -4/Factory Hacker-Sprinter | -4/Waste Hacker-Sprinter | -4/Factory Hacker-Ninja | -4/Upper Caves Hacker-Ninja | -4/Upper Caves Hacker-Ninja | -4/Zhirov Hacker-Sprinter | -3/Proximity Caves Hacker-Ninja | -3/Research Hacker-Ninja | -3/Quarantine Hacker-Ninja | -2/Research Hacker-Sprinter | -2/Testing Scavenger-Ninja | -2/Protoforge Scavenger-Ninja | -1/Access Scavenger-Scout | -1/Command Resources | -11 -10 -10 -8 -8 -6 -6 -6 -6 -6 -6 -6 -5 -5 -5 -5 -5 -5 -5 -5 -4 -4 -4 -4 -4 -4 -3 -3 -3 -2 -2 -2 -1 -1 ----------- Run | Yrd Mat Sub Rec Scr Fac Was Fac Low Low Zio Dee Pro Fac Was Fac Ext Cet Arc Hub Fac Was Fac Upp Upp Zhi Pro Res Qua Res Tes Frg Acc Com Matter Collected 8042 | 264 290 130 . 70 337 . 474 153 30 . . 60 300 20 484 120 50 40 20 . . 231 51 28 . 151 390 159 331 . 1698 1823 338 Remotely . | . . . . . . . . . . . . . . . . . . . . . . . . . . . . . . . . . . Salvage Created 8630 | 96 294 . 13 . 457 . 577 . . . . 67 98 . 515 615 . 141 . . . 363 . . . 5 470 218 511 . 1083 2898 209 Parts 427 | 8 27 . 7 . 39 . 28 . . . . . 11 . 26 30 . 8 . . . 15 . . . 4 20 10 15 . 46 126 7 Haulers Intercepted 11 | . 2 . . . 1 . 1 . . . . . . . 3 . . . . . . 1 . . . . 1 . . . . 2 . Recyclers Shooed 2 | . . . . . . . 2 . . . . . . . . . . . . . . . . . . . . . . . . . . Parts Field Recycled . | . . . . . . . . . . . . . . . . . . . . . . . . . . . . . . . . . . Retrieved Matter . | . . . . . . . . . . . . . . . . . . . . . . . . . . . . . . . . . . Parts Self-Destructed 30 | . . 16 . . . . . 3 . . . . . . . . . . . . . . . . . 11 . . . . . . . Prevented . | . . . . . . . . . . . . . . . . . . . . . . . . . . . . . . . . . . Kills | -11 -10 -10 -8 -8 -6 -6 -6 -6 -6 -6 -6 -5 -5 -5 -5 -5 -5 -5 -5 -4 -4 -4 -4 -4 -4 -3 -3 -3 -2 -2 -2 -1 -1 ------- Run | Yrd Mat Sub Rec Scr Fac Was Fac Low Low Zio Dee Pro Fac Was Fac Ext Cet Arc Hub Fac Was Fac Upp Upp Zhi Pro Res Qua Res Tes Frg Acc Com Combat Hostiles Destroyed 81 | . 10 . . . 7 . 6 . . . . . . . 2 6 . . . . . . . . . 2 . . . . 16 31 1 Melee 16 | . . . . . 3 . . . . . . . . . 2 6 . . . . . . . . . 2 . . . . 3 . . Guns 4 | . 4 . . . . . . . . . . . . . . . . . . . . . . . . . . . . . . . . Cannons 51 | . 6 . . . . . . . . . . . . . . . . . . . . . . . . . . . . . 13 31 1 AOE 10 | . . . . . 4 . 6 . . . . . . . . . . . . . . . . . . . . . . . . . . Classes Destroyed 19 | 2 4 . 1 . 2 . . . . . . . . . 1 1 . . . . . . . . . 1 . . . . 6 1 . Worker 5 | . . . . . . . . . . . . . . . . . . . . . . . . . . . . . . . . 3 2 Builder 19 | . . . 1 . 2 . 2 . . . . . 3 . 2 2 . . . . . 6 . . . . 1 . . . . . . Tunneler 3 | 1 . . . . 2 . . . . . . . . . . . . . . . . . . . . . . . . . . . . Hauler 11 | . 2 . . . 1 . 1 . . . . . . . 3 . . . . . . 1 . . . . 1 . . . . 2 . Recycler 13 | 1 1 . . . 1 . 2 . . . . . . . . 1 . . . . . 1 . . . . 2 . 3 . . . 1 Mechanic 2 | . . . . . . . . . . . . . . . . . . . . . . . . . . . . . . . 2 . . Operator 13 | . . . . . 2 . 1 . . . . . . . 1 1 . 4 . . . . . . . . . 2 . . 2 . . Drone 4 | . . . . . . . . . . . . . . . . . . . . . . . . . . 2 . . . . 2 . . Watcher 23 | . 2 . . . . . 4 . . . . . 1 . 1 . . . . . . 1 . . . . 3 1 3 . 2 4 1 Swarmer 22 | . 9 . . . 6 . 6 . . . . . . . . . . . . . . . . . . . . . . . 1 . . Saboteur 1 | . . . . . . . . . . . . . . . . . . . . . . . . . . . . . . . 1 . . Grunt 22 | . 1 . . . . . . . . . . . . . . 2 . . . . . . . . . . . . . . 4 15 . Protector 1 | . . . . . . . . . . . . . . . . . . . . . . . . . . . . . . . 1 . . Researcher 1 | . . . . . . . . . . . . . . . . . . . . . . . . . . . . . . . 1 . . Sentry 12 | . . . . . . . . . . . . . . . . 4 . . . . . . . . . . . . . . . 7 1 Hunter 3 | . . . . . . . . . . . . . . . 1 . . . . . . . . . . . . . . . 2 . . Programmer 5 | . . . . . 1 . . . . . . . . . 1 . . . . . . . . . . . . . . . . 3 . Striker 3 | . . . . . . . . . . . . . . . . . . . . . . . . . . . . . . . 1 2 . Executioner 8 | . . . . . . . . . . . . . . . . . . . . . . . . . . . . . . . 4 4 . Best Kill Streak 12 | 2 3 . 1 . 6 . 3 . . . . . 1 . 2 2 . 4 . . . 3 . . . 2 2 1 2 . 9 12 2 Combat Bots Only 10 | . 3 . . . 4 . 3 . . . . . . . 1 2 . . . . . . . . . 2 . . . . 9 10 1 Max Kills in Single Turn 4 | 1 1 . 1 . 4 . 2 . . . . . 1 . 1 1 . 1 . . . 1 . . . 1 1 1 1 . 2 3 1 Gunslinging . | . . . . . . . . . . . . . . . . . . . . . . . . . . . . . . . . . . Exploded 3 | . . . . . 3 . 2 . . . . . . . . . . . . . . . . . . . . . . . . . . Melee 1 | . . . . . 1 . . . . . . . . . 1 1 . . . . . . . . . 1 . . . . 1 . . Uniques/NPCs Destroyed . | . . . . . . . . . . . . . . . . . . . . . . . . . . . . . . . . . . Combat | -11 -10 -10 -8 -8 -6 -6 -6 -6 -6 -6 -6 -5 -5 -5 -5 -5 -5 -5 -5 -4 -4 -4 -4 -4 -4 -3 -3 -3 -2 -2 -2 -1 -1 -------- Run | Yrd Mat Sub Rec Scr Fac Was Fac Low Low Zio Dee Pro Fac Was Fac Ext Cet Arc Hub Fac Was Fac Upp Upp Zhi Pro Res Qua Res Tes Frg Acc Com Hostile Shots Fired 1170 | . 40 32 . . 136 . 26 . 3 . 19 . 60 . 90 36 . . 8 . . 89 . . . 4 29 54 72 3 273 116 80 Missed 592 | . 17 19 . . 77 . 18 . 1 . 11 . 33 . 47 17 . . 3 . . 56 . . . 1 15 27 35 2 108 64 41 Deflected 2 | . . . . . . . . . . . . . . . . . . . . . . . . . . . . . . . 2 . . Hits 578 | . 23 13 . . 59 . 8 . 2 . 8 . 27 . 43 19 . . 5 . . 33 . . . 3 14 27 37 1 165 52 39 Melee 17 | . . . . . . . . . . . 1 . . . 1 . . . 1 . . . . . . . . . . . 14 . . Projectile 561 | . 23 13 . . 59 . 8 . 2 . 7 . 27 . 42 19 . . 4 . . 33 . . . 3 14 27 37 1 151 52 39 AOE 14 | . . . . . . . . . . . . . 1 . . . . . . . . . . . . . . . . . 2 1 10 Critical Strikes 34 | . . . . . 2 . . . . . . . 1 . . 1 1 . . . . 1 . . . . 1 1 1 . 20 4 1 Actively Blocked 25 | . . . . . . . . . . . . . . . . . . . . . . . . . . . . . . . 20 4 1 Damage Taken 13540 | . 187 266 . . 743 . 94 . 43 . 257 . 616 . 853 490 55 . 176 . . 782 . . . 67 280 522 801 24 4695 1445 1144 Core 2808 | . 34 183 . . 257 . 30 . 21 . 91 . 127 . 146 126 30 . . . . 170 . . . 22 87 148 94 . 903 212 127 Absorbed by Shields 287 | . . . . . 48 . . . . . . . . . . 19 . . . . . . . . . . . . . . 138 . 82 Redirected to Shielding 280 | . 2 . . . 51 . 13 . . . 23 . 40 . . . . . . . . . . . . . . 15 . . 136 . . Ignored by Resistances 650 | . . . . . . . . . . . . . . . . . . . . . . . . . . . . . . . 338 194 118 Regen/Repaired (Parts) 1531 | . . . . . 43 . 84 . . . . . 94 . 43 . . . . . . 168 . . . . 47 21 307 123 601 . . Core Remaining (%) 60 | 100 . . . 13 . . . . . . . 53 . . . . . . 57 . . . . . . 83 . 81 . . 16 . 78 Volleys Fired 240 | 8 61 11 . . 3 . 4 1 . 2 . . . . 2 . 6 . . . . . . . . . 1 . . . 42 87 12 Largest 2 | 1 2 1 . . 1 . 1 1 . 1 . . . . 1 . 1 . . . . . . . . . 1 . . . 1 1 1 Hottest 200 | 20 50 100 . . 40 . 40 40 . 5 . . . . 120 . 120 . . . . . . . . . 10 . . . 200 110 110 Shots Fired 240 | 8 66 11 . . 2 . 4 . . 2 . . . . 2 . 6 . . . . . . . . . 1 . . . 41 85 12 Gun 22 | 8 14 . . . . . . . . . . . . . . . . . . . . . . . . . . . . . . . . Cannon 196 | . 52 . . . . . . . . . . . . . 1 . 6 . . . . . . . . . . . . . 40 85 12 Launcher 7 | . . . . . 2 . 4 . . . . . . . . . . . . . . . . . . . . . . . 1 . . Special 15 | . . 11 . . . . . . . 2 . . . . 1 . . . . . . . . . . . 1 . . . . . . Kinetic 212 | 8 66 . . . 2 . 4 . . . . . . . . . . . . . . . . . . . . . . . 35 85 12 Thermal 24 | . . 11 . . . . . . . . . . . . 2 . 6 . . . . . . . . . . . . . 5 . . Explosive 1 | . . . . . . . . . . . . . . . . . . . . . . . . . . . . . . . 1 . . Electromagnetic . | . . . . . . . . . . . . . . . . . . . . . . . . . . . . . . . . . . Robot Hit Streak 27 | 2 7 . . . 1 . 2 . . 1 . . . . . . 3 . . . . . . . . . 1 . . . 9 27 3 Robot Miss Streak 5 | 1 5 . . . 1 . 1 . . 2 . . . . . . 2 . . . . . . . . . . . . . 2 5 1 Penetration Max 3 | . . . . . . . . . . . . . . . . . . . . . . . . . . . . . . . 1 3 . Secondary Targets . | . . . . . . . . . . . . . . . . . . . . . . . . . . . . . . . . . . Shots Hit Robots 385 | 5 35 . 1 7 14 . 24 . . 1 . 1 5 . 36 69 3 7 . . . 16 . . . 2 13 14 8 . 40 75 9 Core Hits 236 | 3 15 . 1 . 17 . 17 . . . . . 3 . 9 9 1 3 . . . 3 . . . 2 4 3 5 . 26 113 2 Critical Kills 38 | . . . . . . . . . . . . . . . . . . . . . . . . . . . . . . . 3 35 . Critical Parts Destroyed 49 | . . . . . . . . . . . . . . . . . . . . . . 1 . . . . . . . . 9 39 . Critical Strikes 124 | . 2 . . . 1 . . . . . . . . . 3 4 . . . . . 1 . . . . 1 . . . 20 87 5 Destroy 98 | . . . . . . . . . . . . . . . . . . . . . . . . . . . . . . . 14 84 . Blast 15 | . 2 . . . . . . . . . . . . . . . . . . . . . . . . . . . . . 6 3 4 Smash 1 | . . . . . . . . . . . . . . . . . . . . . . 1 . . . . . . . . . . . Sever 9 | . . . . . 1 . . . . . . . . . 3 4 . . . . . . . . . . 1 . . . . . . Impale 1 | . . . . . . . . . . . . . . . . . . . . . . . . . . . . . . . . . 1 Melee Attacks 807 | . . 17 1 7 71 . 78 2 2 1 2 1 58 . 104 84 2 8 15 5 . 68 2 12 . 7 81 36 47 16 58 19 3 Impact 81 | . . . . . . . . . . . . . . . 2 . . . . . . 20 2 12 . 7 25 13 . . . . . Slashing 624 | . . 17 1 . 70 . 73 2 2 1 2 1 57 . 94 41 2 7 15 5 . 45 . . . . 56 17 47 16 53 . . Piercing 27 | . . . . . . . . . . . . . . . . . . . . . . . . . . . . . . . 5 19 3 Sneak Attacks 130 | . . . 1 7 4 . 11 . . . . . 4 . 11 50 . 6 . . . 11 . . . 1 4 7 5 . 5 2 1 Combat Hostiles 5 | . . . . . . . . . . . . . . . . 3 . . . . . . . . . 1 . . . . 1 . . Follow-up Attacks . | . . . . . . . . . . . . . . . . . . . . . . . . . . . . . . . . . . Damage Inflicted 19963 | 66 587 . 80 . 1309 . 1698 . . . . 74 370 . 1664 1579 171 653 . . . 978 . . . 132 1059 1014 1194 . 4586 1745 1004 Guns 189 | 66 123 . . . . . . . . . . . . . . . . . . . . . . . . . . . . . . . . Cannons 5605 | . 464 . . . . . . . . . . . . . . . 171 . . . . . . . . . . . . . 2800 1413 757 Explosions 1460 | . . . . . 553 . 497 . . . . . . . . . . . . . . . . . . . . . . . 351 59 . Melee 12709 | . . . 80 . 756 . 1201 . . . . 74 370 . 1664 1579 . 653 . . . 978 . . . 132 1059 1014 1194 . 1435 273 247 Ramming . | . . . . . . . . . . . . . . . . . . . . . . . . . . . . . . . . . . Kinetic 6145 | 66 587 . . . 151 . 497 . . . . . . . . . . . . . . . . . . . . . . . 2674 1413 757 Thermal 658 | . . . . . . . . . . . . . . . . . 171 . . . . . . . . . . . . . 428 59 . Explosive 451 | . . . . . 402 . . . . . . . . . . . . . . . . . . . . . . . . . 49 . . Electromagnetic . | . . . . . . . . . . . . . . . . . . . . . . . . . . . . . . . . . . Impact 1012 | . . . . . . . . . . . . . . . . . . . . . . 104 . . . 132 144 632 . . . . . Slashing 11177 | . . . 80 . 756 . 1201 . . . . 74 370 . 1664 1579 . 653 . . . 874 . . . . 915 382 1194 . 1435 . . Piercing 520 | . . . . . . . . . . . . . . . . . . . . . . . . . . . . . . . . 273 247 Highest Corruption 13 | . . . . 3 3 13 13 . . . . . 2 . 4 . . . 3 . 7 7 7 7 7 7 . 11 1 1 9 9 9 Average Corruption 3 | . . . . 3 1 7 6 . . . . . 1 . 1 . . . 1 . 7 7 7 7 7 7 . 10 1 1 1 6 9 Corruption Purged 34 | . . . . . . . 13 . . . . . 2 . 4 . . . . . . . . . . . . . . . 15 . . Corruption Blocked . | . . . . . . . . . . . . . . . . . . . . . . . . . . . . . . . . . . Effects 153 | . . . . . 6 2 25 . . . . . 5 . 5 . . . 1 . . 31 2 4 2 4 . 11 . 4 28 18 5 Message Errors 27 | . . . . . 2 . 4 . . . . . 2 . . . . . . . . 5 . 1 1 . . 2 . 2 5 3 . Matter Fused 35 | . . . . . 2 . 4 . . . . . . . 1 . . . . . . 8 2 1 . 2 . 2 . 1 7 3 2 Heat Flow Errors 22 | . . . . . 1 . 3 . . . . . 1 . 1 . . . 1 . . 2 . 1 1 2 . 2 . 1 5 . 1 Energy Discharges 20 | . . . . . . . 6 . . . . . 1 . . . . . . . . 6 . . . . . 1 . . 4 1 1 Parts Rejected 3 | . . . . . . . 1 . . . . . . . . . . . . . . 1 . . . . . . . . . 1 . Parts Fused 3 | . . . . . . . . . . . . . . . . . . . . . . 1 . . . . . 1 . . 1 . . Data Loss (minor) 22 | . . . . . 1 1 3 . . . . . 1 . 2 . . . . . . 4 . . . . . . . . 2 7 1 Data Loss (major) 11 | . . . . . . . 4 . . . . . . . . . . . . . . 4 . 1 . . . . . . 2 . . Alerts 3 | . . . . . . . . . . . . . . . 1 . . . . . . . . . . . . . . . 1 1 . Misdirections 4 | . . . . . . 1 . . . . . . . . . . . . . . . . . . . . . 3 . . . . . Weapon Failures 3 | . . . . . . . . . . . . . . . . . . . . . . . . . . . . . . . 1 2 . Overload Shots . | . . . . . . . . . . . . . . . . . . . . . . . . . . . . . . . . . . Overflow Damage 3971 | . 10 . . . 141 . 343 . . . . 62 80 . 378 230 . 195 . . . 452 . . . . 316 356 49 . 1026 71 262 Projectiles 550 | . 10 . . . . . . . . . . . . . . . . . . . . . . . . . . . . . 291 71 178 Explosions 5 | . . . . . 2 . 3 . . . . . . . . . . . . . . . . . . . . . . . . . . Melee 3416 | . . . . . 139 . 340 . . . . 62 80 . 378 230 . 195 . . . 452 . . . . 316 356 49 . 735 . 84 Knockbacks 31 | . 4 . . . . . . . . . . . . . . . . . . . . 1 . . . . . 3 . . 9 12 2 Impact 4 | . . . . . . . . . . . . . . . . . . . . . . 1 . . . . . 3 . . . . . Kinetic 24 | . 2 . . . . . . . . . . . . . . . . . . . . . . . . . . . . . 8 12 2 Secondary 3 | . 2 . . . . . . . . . . . . . . . . . . . . . . . . . . . . . 1 . . Self-Inflicted Damage 86 | . . . . . 86 . . . . . . . . . . . . . . . . . . . . . . . . . . . . Shots 2 | . . . . . 2 . . . . . . . . . . . . . . . . . . . . . . . . . . . . Rammed . | . . . . . . . . . . . . . . . . . . . . . . . . . . . . . . . . . . Targets Rammed . | . . . . . . . . . . . . . . . . . . . . . . . . . . . . . . . . . . Kicked . | . . . . . . . . . . . . . . . . . . . . . . . . . . . . . . . . . . Crushed . | . . . . . . . . . . . . . . . . . . . . . . . . . . . . . . . . . . Highest Temperature 305 | . 7 . . . 169 . 241 5 . . 6 . 284 141 305 . 120 . 264 . . 178 . 112 166 174 262 118 300 221 132 180 192 Average Temperature 82 | . 7 . . . 67 . 100 4 . . 6 . 81 64 101 . 53 . 264 . . 94 . 72 87 86 51 49 95 55 47 83 72 Received Heat Transfer 1237 | . . 45 . . 135 . 24 . . . 63 . 105 . 108 93 . . 9 . . 144 . . . . 54 97 9 . 270 72 9 Effects 6 | . . . . . . . . . . . . . 1 . 5 . . . . . . . . . . . . . . . . . . Energy Bleed 3 | . . . . . . . . . . . . . 1 . 2 . . . . . . . . . . . . . . . . . . Interference 3 | . . . . . . . . . . . . . . . 3 . . . . . . . . . . . . . . . . . . Siege Activations . | . . . . . . . . . . . . . . . . . . . . . . . . . . . . . . . . . . Martial Activations . | . . . . . . . . . . . . . . . . . . . . . . . . . . . . . . . . . . Shielding Activations . | . . . . . . . . . . . . . . . . . . . . . . . . . . . . . . . . . . Robots Disrupted . | . . . . . . . . . . . . . . . . . . . . . . . . . . . . . . . . . . Combat Hostiles . | . . . . . . . . . . . . . . . . . . . . . . . . . . . . . . . . . . Robots Corrupted 4 | . . . . . . . . . . . . . . . . . . . . . . 1 . . . . . 3 . . . . . Combat Hostiles . | . . . . . . . . . . . . . . . . . . . . . . . . . . . . . . . . . . Parts Fried 9 | . . . . . . . . . . . . . . . . . . . . . . 3 . . . . 2 4 . . . . . Impact Corruptions 12 | . . . . . . . . . . . . . . . . . . . . . . 3 . . . . 1 8 . . . . . Robots Melted . | . . . . . . . . . . . . . . . . . . . . . . . . . . . . . . . . . . Combat Hostiles . | . . . . . . . . . . . . . . . . . . . . . . . . . . . . . . . . . . Parts Melted 1 | . . . . . . . . . . . . . . . . 1 . . . . . . . . . . . . . . . . . Heat Transferred 568 | . . . . . . . . . . . . . . . . . 148 . . . . . . . . . . . . . 370 50 . Parts Sabotaged . | . . . . . . . . . . . . . . . . . . . . . . . . . . . . . . . . . . Parts Stolen . | . . . . . . . . . . . . . . . . . . . . . . . . . . . . . . . . . . Parts Stripped . | . . . . . . . . . . . . . . . . . . . . . . . . . . . . . . . . . . Power Chain Reactions 2 | . . . . . . . . . . . . . 1 . 1 . . . . . . . . . . . . . . . . . . Alert | -11 -10 -10 -8 -8 -6 -6 -6 -6 -6 -6 -6 -5 -5 -5 -5 -5 -5 -5 -5 -4 -4 -4 -4 -4 -4 -3 -3 -3 -2 -2 -2 -1 -1 ------- Run | Yrd Mat Sub Rec Scr Fac Was Fac Low Low Zio Dee Pro Fac Was Fac Ext Cet Arc Hub Fac Was Fac Upp Upp Zhi Pro Res Qua Res Tes Frg Acc Com Maximum Alert Level 5 | . . . . . 2 . 2 . . . . . . . 1 1 . . 3 1 . 1 . . . . 1 2 2 1 3 5 4 Low Security (%) 47 | 100 100 . 100 . 40 100 58 . . . . . 100 100 65 23 100 100 35 75 100 82 . . . . 66 . . . 14 . . Level 1 25 | . . . . . 20 . 20 . . . . . . . 34 76 . . 28 24 . 17 . . . . 33 91 98 100 5 . . Level 2 20 | . . . . . 38 . 20 . . . . . . . . . . . 27 . . . . . . . . 8 1 . 75 13 . Level 3 1 | . . . . . . . . . . . . . . . . . . . 8 . . . . . . . . . . . 4 18 . Level 4 3 | . . . . . . . . . . . . . . . . . . . . . . . . . . . . . . . . 37 100 Level 5 1 | . . . . . . . . . . . . . . . . . . . . . . . . . . . . . . . . 30 . High Security . | . . . . . . . . . . . . . . . . . . . . . . . . . . . . . . . . . . Max Security . | . . . . . . . . . . . . . . . . . . . . . . . . . . . . . . . . . . Peak Influence 1926 | 10 199 . 161 . 468 154 570 . . . . . 105 5 270 377 161 165 727 342 15 234 . . . . 370 425 413 381 774 1926 1439 Initial 1224 | . . . . . . 154 100 . . . . . . 5 . 43 161 3 39 342 . 10 . . . . 300 207 237 222 141 464 1224 Average 304 | 1 113 . 110 . 267 150 251 . . . . . 34 1 162 245 72 122 322 87 11 125 . . . . 160 287 291 272 447 1265 1340 Influence Increases 13189 | 10 390 15 218 . 1102 . 1017 . 15 . . . 386 . 847 892 138 232 830 60 15 636 . 45 . 10 1135 424 500 359 1612 1983 318 Destroy 0b10 Robot/C 2580 | . 200 . . . 140 . 120 . . . . . . . 220 460 80 80 340 . . . . . . . . . . . 280 640 20 Destroy 0b10 Robot/NC 495 | 10 25 . 5 . 40 . 50 . . . . . 20 . 35 20 5 20 5 . . 45 . . . 10 35 30 30 . 45 45 20 Destroy Leader 498 | . 38 . . . 22 . 30 . . . . . 2 . 68 30 . . 80 . . 4 . . . . 8 2 6 . 54 142 12 Allied During Kill 619 | . . . . . . . . . . . . . . . 102 210 37 100 164 . . . . . . . . . . . . 6 . Trap Triggered on 0b10 10 | . . . . . . . . . . . . . . . . . . . . . . 10 . . . . . . . . . . . Successful Hack 1058 | . 36 . 33 . 124 . 82 . . . . . 108 . 40 24 4 . . 20 . 89 . . . . 87 81 95 113 122 . . Select Force Hacks 470 | . . . 180 . 30 . 20 . . . . . 50 . 50 . . . 50 . . . . . . . 90 . . . . . . Disable Machine 840 | . . . . . 135 . 105 . . . . . 45 . . 15 . 30 15 . . 15 . . . . . 105 15 60 225 60 15 Anti-Garrison Action 800 | . . . . . 200 . 400 . . . . . . . . . . . . . . . . . . . . . . . 200 . . Destroy Structure 1364 | . 1 . . . 81 . 90 . . . . . 86 . 122 28 12 2 56 10 . 98 . . . . 120 26 114 36 206 240 36 Advance Influence 300 | . . . . . . . . . . . . . . . . . . . . . . . . . . . 300 . . . . . . Partial Spotted 1545 | . 15 . . . 60 . 75 . . . . . 75 . 105 60 . . 60 30 15 30 . . . . 435 45 165 90 240 30 15 Lose Combat Pursuer 1710 | . 75 15 . . 270 . 45 . 15 . . . . . 105 45 . . 60 . . 345 . 45 . . 60 135 75 60 240 120 . Active Sensor Use 900 | . . . . . . . . . . . . . . . . . . . . . . . . . . . . . . . . 700 200 Influence Decreases 11827 | 10 244 161 150 68 661 297 638 244 94 200 . . 369 17 758 692 418 126 246 759 . 459 112 86 39 10 765 371 528 503 1089 844 869 Entered New Map 3306 | . . 71 . 68 . 287 44 194 54 200 . . . 12 . 46 128 6 76 357 . 5 72 16 39 . . 163 186 173 110 310 689 Time Decay 5801 | 10 244 90 150 . 451 10 434 50 40 . . . 320 5 518 356 140 80 60 70 . 400 40 70 . 10 430 198 302 180 699 334 110 Lost Part 709 | . . . . . 50 . . . . . . . 19 . 120 50 10 . 10 . . 40 . . . . . 10 20 . 230 80 70 Lost Ally 924 | . . . . . 10 . 10 . . . . . 30 . 120 240 140 40 100 10 . 14 . . . . 20 . 20 . 50 120 . Purge Threat 1087 | . . . . . 150 . 150 . . . . . . . . . . . . 322 . . . . . . 315 . . 150 . . . Squads Dispatched 187 | . . . . . 22 . 20 . . . . . 17 . 25 2 . . 9 1 . 20 . . . . 17 4 9 4 10 24 3 Investigation 107 | . . . . . 15 . 17 . . . . . 14 . 12 . . . 5 1 . 13 . . . . 9 1 3 2 6 7 2 Extermination 37 | . . . . . 3 . 3 . . . . . 3 . 5 . . . . . . 4 . . . . 5 2 3 2 1 5 1 Reinforcement 34 | . . . . . 4 . . . . . . . . . 7 2 . . 4 . . 3 . . . . 3 1 3 . 3 4 . Assault 5 | . . . . . . . . . . . . . . . . . . . . . . . . . . . . . . . . 5 . Garrison 4 | . . . . . . . . . . . . . . . 1 . . . . . . . . . . . . . . . . 3 . Intercept . | . . . . . . . . . . . . . . . . . . . . . . . . . . . . . . . . . . Searches Triggered . | . . . . . . . . . . . . . . . . . . . . . . . . . . . . . . . . . . Construction Impeded 3 | . . . . . . . . . . . . . . . . 2 . . . . . 1 . . . . . . . . . . . Haulers Reinforced 5 | . . . . . 1 . . . . . . . . . . . . . . . . 1 . . . . 1 1 . . . 1 . Active Scanning Responses 9 | . . . . . . . . . . . . . . . . . . . . . . . . . . . . . . . . 7 2 Cargo Convoy Interrupts 4 | . . . . . 1 . . . . . . . 1 . 1 . . . . . . 1 . . . . . . . . . . . Stealth | -11 -10 -10 -8 -8 -6 -6 -6 -6 -6 -6 -6 -5 -5 -5 -5 -5 -5 -5 -5 -4 -4 -4 -4 -4 -4 -3 -3 -3 -2 -2 -2 -1 -1 --------- Run | Yrd Mat Sub Rec Scr Fac Was Fac Low Low Zio Dee Pro Fac Was Fac Ext Cet Arc Hub Fac Was Fac Upp Upp Zhi Pro Res Qua Res Tes Frg Acc Com Distress Signals 54 | . . . . . 5 . . . . . . . 6 . 8 2 1 . 1 . . 4 . . . . 7 2 5 2 9 2 . Communications Jammed . | . . . . . . . . . . . . . . . . . . . . . . . . . . . . . . . . . . Distress Signals . | . . . . . . . . . . . . . . . . . . . . . . . . . . . . . . . . . . Times Spotted 897 | . 21 22 . . 59 5 19 . 1 . 8 1 73 . 92 25 5 3 22 3 4 78 . 1 . 13 52 35 79 8 165 80 23 Peak Tracking Total 15 | . 5 6 . . 15 5 4 . 1 . 10 7 9 . 11 8 5 1 13 2 5 12 . 3 . 6 9 8 12 7 13 11 10 Tactical Retreats 156 | . 3 7 . . 16 . 3 . 1 . 2 . 19 . 27 2 . . 2 . . 20 . 1 . 3 14 7 14 2 10 3 . Traps | -11 -10 -10 -8 -8 -6 -6 -6 -6 -6 -6 -6 -5 -5 -5 -5 -5 -5 -5 -5 -4 -4 -4 -4 -4 -4 -3 -3 -3 -2 -2 -2 -1 -1 ------- Run | Yrd Mat Sub Rec Scr Fac Was Fac Low Low Zio Dee Pro Fac Was Fac Ext Cet Arc Hub Fac Was Fac Upp Upp Zhi Pro Res Qua Res Tes Frg Acc Com Traps Triggered 34 | . . . . . 3 . 2 . . . . . 1 . . 3 . . 1 1 . 2 . . . . . 2 . . 10 4 5 Indirectly . | . . . . . . . . . . . . . . . . . . . . . . . . . . . . . . . . . . Trap Hack Attempts 6 | . . . . . 6 . . . . . . . . . . . . . . . . . . . . . . . . . . . . Triggered . | . . . . . . . . . . . . . . . . . . . . . . . . . . . . . . . . . . Disarmed 5 | . . . . . . . . . . . . . . . . . . . . . . 5 . . . . . . . . . . . Reprogrammed 17 | . . . . . 1 . . . . . . . . . . . . . . 6 . 10 . . . . . . . . . . . Reused 1 | . . . . . . . . . . . . . . . . . . . . . . 1 . . . . . . . . . . . Traps Extracted . | . . . . . . . . . . . . . . . . . . . . . . . . . . . . . . . . . . Installed . | . . . . . . . . . . . . . . . . . . . . . . . . . . . . . . . . . . Triggered 1 | . . . . . . . . . . . . . . . . . . . . . . 1 . . . . . . . . . . . Machines | -11 -10 -10 -8 -8 -6 -6 -6 -6 -6 -6 -6 -5 -5 -5 -5 -5 -5 -5 -5 -4 -4 -4 -4 -4 -4 -3 -3 -3 -2 -2 -2 -1 -1 ---------- Run | Yrd Mat Sub Rec Scr Fac Was Fac Low Low Zio Dee Pro Fac Was Fac Ext Cet Arc Hub Fac Was Fac Upp Upp Zhi Pro Res Qua Res Tes Frg Acc Com Machines Disabled 62 | . . . . . 9 . 7 . . 3 . . 3 . . 1 . 2 1 . . 1 . . . 1 . 7 1 4 17 4 1 Max in Single Turn 2 | . . . . . 2 . 2 . . 1 . . 1 . . 1 . . . . . 1 . . . 1 . 1 1 1 1 1 1 Garrison Access 22 | . . . . . 2 . 2 . . . . . 3 . 3 . . . . . . 4 . . . . 3 . 3 1 1 . . Network Hub 1 | . . . . . . . . . . . . . . . . . . . 1 . . . . . . . . . . . . . . Energy Cycler 1 | . . . . . . . . . . . . . . . . . . . . . . . . . . . . . . . . 1 . Machines Repaired . | . . . . . . . . . . . . . . . . . . . . . . . . . . . . . . . . . . Machines Dismantled 4 | . . . . . . . . . . 3 . . . . . 1 . . . . . . . . . . . . . . . . . Machines Sabotaged 1 | . . . . . . . . . . . . . . . . . . . 1 . . . . . . . . . . . . . . Overloaded Fab Kills 5 | . . . . . . . . . . . . . 3 . 2 . . . . . . . . . . . . . . . . . . Hacking | -11 -10 -10 -8 -8 -6 -6 -6 -6 -6 -6 -6 -5 -5 -5 -5 -5 -5 -5 -5 -4 -4 -4 -4 -4 -4 -3 -3 -3 -2 -2 -2 -1 -1 --------- Run | Yrd Mat Sub Rec Scr Fac Was Fac Low Low Zio Dee Pro Fac Was Fac Ext Cet Arc Hub Fac Was Fac Upp Upp Zhi Pro Res Qua Res Tes Frg Acc Com Machines Accessed 314 | . 8 . 12 6 33 . 35 2 1 . . . 36 . 29 7 2 . 6 8 . 36 1 . 8 . 25 13 17 11 16 2 . Terminals 148 | . 7 . 6 . 13 . 15 . . . . . 16 . 11 7 2 . 5 6 . 16 . . . . 12 10 9 6 7 . . Fabricators 28 | . . . . . 3 . 4 . . . . . 3 . 4 . . . . 1 . 3 . . . . 1 . 3 2 4 . . Repair Stations 25 | . . . . . 4 . 2 . . . . . 5 . 3 . . . . . . 5 . . . . 1 1 1 1 1 1 . Recycling Units 51 | . 1 . 6 . 7 . 8 . . . . . 7 . 6 . . . . . . 6 . . . . 5 . 1 . 3 1 . Scanalyzers 19 | . . . . . 3 . 3 . . . . . 2 . 2 . . . . 1 . 2 . . . . 3 2 . 1 . . . Garrison Access 25 | . . . . . 3 . 3 . . . . . 3 . 3 . . . 1 . . 4 . . . . 3 . 3 1 1 . . Total Hacks 1007 | . 30 . 34 33 92 . 87 4 1 . . . 114 . 72 15 7 . 15 53 . 122 1 . 47 . 98 46 55 29 49 3 . Successful 725 | . 19 . 20 33 52 . 51 4 1 . . . 85 . 55 6 5 . 10 47 . 98 1 . 47 . 80 32 34 20 25 . . Failed 275 | . 11 . 14 . 40 . 36 . . . . . 28 . 16 9 2 . 5 6 . 23 . . . . 15 13 21 9 24 3 . Catastrophic 36 | . 6 . 1 . 7 . 3 . . . . . 4 . . . 1 . . 1 . . . . . . 1 4 2 . 5 1 . Database Lockouts 7 | . . . . . . . . . . . . . 1 . 1 . . . . . . 1 . . . . 3 1 . . . . . Manual 625 | . 26 . 31 . 58 . 57 . . . . . 75 . 53 8 1 . 13 33 . 85 . . . 1 56 30 43 19 33 3 . Terminals 625 | . 28 . 25 . 45 . 42 . . . . . 68 . 41 15 7 . 12 41 . 94 . . . . 81 35 35 23 33 . . Fabricators 79 | . . . . . 5 . 14 . . . . . 11 . 11 . . . . 6 . 7 . . . . 3 . 12 2 8 . . Repair Stations 40 | . . . . . 8 . 5 . . . . . 11 . 3 . . . . . . 6 . . . . 1 1 1 1 1 2 . Recycling Units 68 | . 2 . 9 . 13 . 10 . . . . . 9 . 6 . . . . . . 6 . . . . 5 . 1 . 6 1 . Scanalyzers 65 | . . . . . 15 . 10 . . . . . 10 . 4 . . . . 6 . 4 . . . . 4 10 . 2 . . . Garrison Access 44 | . . . . . 6 . 6 . . . . . 5 . 7 . . . 3 . . 5 . . . . 4 . 6 1 1 . . Terminal Hacks 261 | . 6 . 4 33 8 . 6 4 1 . . . 15 . 5 3 5 . 3 20 . 36 1 . 47 . 36 9 5 5 9 . . Record 76 | . . . . 26 . . . 3 . . . . . . . . 4 . . . . 1 . . 35 . 6 . . . 1 . . Part Schematic 20 | . . . 2 . 3 . . . . . . . 2 . . . . . . . . 1 . . 4 . 4 2 2 . . . . Robot Analysis 22 | . 2 . 1 6 . . . . . . . . 1 . 1 . . . . 1 . 5 . . 4 . 1 . . . . . . Prototype ID Bank 16 | . 1 . . . . . 1 . . . . . 1 . . . . . . . . 3 . . 4 . 3 2 1 . . . . Open Door 7 | . . . . . . . . 1 1 . . . . . . 3 1 . . . . . 1 . . . . . . . . . . Level Access Points 1 | . . . . . . . . . . . . . . . . . . . . . . 1 . . . . . . . . . . . Branch Access Points 4 | . . . . . . . . . . . . . 1 . . . . . . 1 . 1 . . . . 1 . . . . . . Emergency Access Points 1 | . . . . . . . . . . . . . . . . . . . . . . . . . . . 1 . . . . . . Machine Index 2 | . . . . . . . . . . . . . . . . . . . . . . 1 . . . . . 1 . . . . . Terminal Index 9 | . 1 . 1 . . . . . . . . . . . 1 . . . 1 1 . 1 . . . . 1 1 . . 1 . . Fabricator Index 3 | . . . . . . . . . . . . . . . . . . . . 1 . 1 . . . . 1 . . . . . . Repair Station Index 1 | . . . . . . . . . . . . . . . . . . . . . . . . . . . . . . 1 . . . Recycling Unit Index 4 | . . . . . 1 . . . . . . . . . . . . . . 1 . 1 . . . . . . . . 1 . . Scanalyzer Index 2 | . . . . . . . 1 . . . . . . . . . . . . . . . . . . . 1 . . . . . . Garrison Index 1 | . . . . . . . . . . . . . . . . . . . . . . . . . . . . . . . 1 . . Alert Level 8 | . . . . . . . 1 . . . . . 1 . . . . . . 2 . 1 . . . . 2 . . 1 . . . Unreport Threat 12 | . . . . . 1 . 1 . . . . . 1 . . . . . . 4 . . . . . . 4 . . 1 . . . Locate Traps 8 | . 1 . . . 1 . 1 . . . . . . . . . . . . . . 4 . . . . . 1 . . . . . Disarm Traps 1 | . . . . . . . . . . . . . . . . . . . . . . 1 . . . . . . . . . . . Reprogram Traps 3 | . . . . . . . . . . . . . . . . . . . . 1 . 2 . . . . . . . . . . . Dispatch Records 2 | . . . . . 1 . . . . . . . . . . . . . . 1 . . . . . . . . . . . . . Security Status 1 | . . . . . . . . . . . . . . . . . . . . 1 . . . . . . . . . . . . . Surveillance Status 1 | . . . . . . . . . . . . . . . . . . . . . . . . . . . 1 . . . . . . Investigation Status 1 | . . . . . . . . . . . . . . . . . . . . . . . . . . . 1 . . . . . . Extermination Status 2 | . . . . . . . . . . . . . 1 . . . . . . 1 . . . . . . . . . . . . . Reinforcement Status 1 | . . . . . . . . . . . . . . . . . . . . . . . . . . . 1 . . . . . . Recall Investigation 6 | . . . . . 1 . . . . . . . . . . . . . . 1 . . . . . . 4 . . . . . . Recall Extermination 6 | . . . . . . . . . . . . . 2 . . . . . . . . 3 . . . . 1 . . . . . . Hauler Manifests 2 | . . . . . . . . . . . . . 1 . . . . . . 1 . . . . . . . . . . . . . Registered Components 5 | . . . . . . . 1 . . . . . . . . . . . . 1 . 1 . . . . 1 . . . 1 . . Registered Prototypes 3 | . . . . . . . . . . . . . 1 . . . . . . . . 1 . . . . . 1 . . . . . Zone Layout 28 | . 1 . . . . . . . . . . . 3 . 3 . . . 2 2 . 7 . . . . 2 1 2 2 3 . . Proto ID Catalog 2 | . . . . 1 . . . . . . . . . . . . . . . . . . . . . . . . . . 1 . . Fabricator Hacks 39 | . . . . . 4 . 8 . . . . . 6 . 6 . . . . 3 . 3 . . . . 2 . 5 . 2 . . Network Status 5 | . . . . . 1 . . . . . . . . . 1 . . . . 1 . 1 . . . . . . 1 . . . . Load Schematic 21 | . . . . . 2 . 5 . . . . . 4 . 3 . . . . 1 . 2 . . . . 1 . 2 . 1 . . Build 13 | . . . . . 1 . 3 . . . . . 2 . 2 . . . . 1 . . . . . . 1 . 2 . 1 . . Repair Station Hacks 15 | . . . . . 4 . 4 . . . . . 5 . . . . . . . . 2 . . . . . . . . . . . Scan Component 8 | . . . . . 2 . 2 . . . . . 3 . . . . . . . . 1 . . . . . . . . . . . Repair 7 | . . . . . 2 . 2 . . . . . 2 . . . . . . . . 1 . . . . . . . . . . . Recycling Unit Hacks 1 | . . . 1 . . . . . . . . . . . . . . . . . . . . . . . . . . . . . . Retrieve Components 1 | . . . 1 . . . . . . . . . . . . . . . . . . . . . . . . . . . . . . Scanalyzer 46 | . . . . . 10 . 6 . . . . . 7 . 4 . . . . 6 . 4 . . . . . 7 . 2 . . . Insert Component 25 | . . . . . 6 . 3 . . . . . 3 . 2 . . . . 2 . 2 . . . . . 6 . 1 . . . Analyze 21 | . . . . . 4 . 3 . . . . . 4 . 2 . . . . 4 . 2 . . . . . 1 . 1 . . . Garrison Access Hacks 18 | . . . . . 1 . . . . . . . 3 . 3 . . . . . . 4 . . . . 3 . 3 1 . . . Seal Access 18 | . . . . . 1 . . . . . . . 3 . 3 . . . . . . 4 . . . . 3 . 3 1 . . . Unauthorized Hacks 345 | . 13 . 15 . 25 . 27 . . . . . 49 . 37 3 . . 7 18 . 49 . . . . 39 16 21 12 14 . . Terminals 244 | . 11 . 9 . 14 . 12 . . . . . 35 . 26 3 . . 7 16 . 36 . . . . 29 15 14 9 8 . . Track 34 | . . . . . 2 . . . . . . . 6 . 1 . . . 3 3 . 9 . . . . 4 . 3 1 2 . . Assimilate 23 | . . . . . 1 . 1 . . . . . 3 . 5 . . . . 1 . 3 . . . . 4 2 2 . 1 . . Botnet 89 | . 5 . 4 . 4 . 6 . . . . . 13 . 9 . . . 1 5 . 15 . . . . 11 7 3 2 4 . . Disrupt 10 | . . . . . . . . . . . . . . . 1 . . . . 1 . 3 . . . . 2 1 1 . 1 . . Operators 4 | . 1 . . . 1 . . . . . . . . . . . . . . 1 . 1 . . . . . . . . . . . Skim 81 | . 5 . 5 . 6 . 5 . . . . . 13 . 10 3 . . . 5 . 5 . . . . 8 5 5 6 . . . Sabotage 3 | . . . . . . . . . . . . . . . . . . . 3 . . . . . . . . . . . . . . Fabricators 25 | . . . . . 1 . 4 . . . . . 4 . 2 . . . . 2 . 3 . . . . 1 . 5 2 1 . . Report 2 | . . . . . . . . . . . . . . . . . . . . 1 . 1 . . . . . . . . . . . Prioritize 7 | . . . . . . . 1 . . . . . 1 . 1 . . . . 1 . . . . . . 1 . 2 . . . . Fabnet 6 | . . . . . . . . . . . . . . . . . . . . . . . . . . . . . 3 2 1 . . Overload 2 | . . . . . . . . . . . . . 1 . 1 . . . . . . . . . . . . . . . . . . Download 1 | . . . . . . . 1 . . . . . . . . . . . . . . . . . . . . . . . . . . Recompile 7 | . . . . . 1 . 2 . . . . . 2 . . . . . . . . 2 . . . . . . . . . . . Repair Stations 18 | . . . . . 2 . 1 . . . . . 3 . 3 . . . . . . 4 . . . . 1 1 1 1 1 . . Patch 18 | . . . . . 2 . 1 . . . . . 3 . 3 . . . . . . 4 . . . . 1 1 1 1 1 . . Recycling Units 50 | . 2 . 6 . 6 . 8 . . . . . 7 . 6 . . . . . . 6 . . . . 5 . 1 . 3 . . Reject 1 | . 1 . . . . . . . . . . . . . . . . . . . . . . . . . . . . . . . . Mask 1 | . 1 . . . . . . . . . . . . . . . . . . . . . . . . . . . . . . . . Tunnel 6 | . . . 6 . . . . . . . . . . . . . . . . . . . . . . . . . . . . . . Fedlink 42 | . . . . . 6 . 8 . . . . . 7 . 6 . . . . . . 6 . . . . 5 . 1 . 3 . . Scanalyzers 4 | . . . . . 1 . . . . . . . . . . . . . . . . . . . . . 3 . . . . . . Extract 4 | . . . . . 1 . . . . . . . . . . . . . . . . . . . . . 3 . . . . . . Garrison Access 4 | . . . . . 1 . 2 . . . . . . . . . . . . . . . . . . . . . . . 1 . . Jam 4 | . . . . . 1 . 2 . . . . . . . . . . . . . . . . . . . . . . . 1 . . Data Cores Recovered 6 | . . . . . . . . . . . . . . . 1 1 . . . . . . . . . . . 2 . . 2 . . Used 2 | . . . . . . . . . . . . . . . 1 1 . . . . . . . . . . . . . . . . . Hacking Detections 184 | . 7 . 8 . 22 . 24 . . . . . 19 . 16 5 1 . 4 7 . 15 . . . . 12 12 13 8 9 2 . Full Trace Events 16 | . . . 1 . 4 . 2 . . . . . 1 . 2 . . . 2 1 . . . . . . . . 1 1 1 . . Feedback Events 3 | . . . . . . . . . . . . . 1 . 1 . . . . . . . . . . . . . . . 1 . . Corruption 2 | . . . . . . . . . . . . . 1 . . . . . . . . . . . . . . . . . 1 . . Hackware Fried 1 | . . . . . . . . . . . . . . . 1 . . . . . . . . . . . . . . . . . . Feedback Blocked . | . . . . . . . . . . . . . . . . . . . . . . . . . . . . . . . . . . Robot Schematics Acquired 5 | . . . . . . . . . . 4 . . . . . . . . . . . . . . . . . 1 . . . . . Robots Built 2 | . . . . . . . . . . . . . . . . . . . . . . . . . . . . . . . 2 . . Authchips . | . . . . . . . . . . . . . . . . . . . . . . . . . . . . . . . . . . Time 74 | . . . . . . . . . . . . . . . . . . . . . . . . . . . . . . . 74 . . Total Robot Build Rating 18 | . . . . . . . . . . . . . . . . . . . . . . . . . . . . . . . 18 . . Part Schematics Acquired 80 | . . . 2 . 7 . 3 . . 15 . . 5 . 2 . . . . 2 . 3 . . 4 . 18 15 2 1 1 . . Parts Built 19 | . . . . . 2 . 4 . . . . . 3 . 4 . . . . 1 . . . . . . 2 . 3 . . . . Authchips 8 | . . . . . 1 . 2 . . . . . 2 . 1 . . . . . . . . . . . 1 . 1 . . . . Time 450 | . . . . . 24 . 111 . . . . . 117 . 64 . . . . 42 . . . . . . 23 . 69 . . . . Total Part Build Rating 137 | . . . . . 6 . 28 . . . . . 22 . 32 . . . . 6 . . . . . . 18 . 25 . . . . Parts Repaired 7 | . . . . . 2 . 2 . . . . . 2 . . . . . . . . 1 . . . . . . . . . . . Time 281 | . . . . . 31 . 100 . . . . . 100 . . . . . . . . 50 . . . . . . . . . . . Parts Recycled . | . . . . . . . . . . . . . . . . . . . . . . . . . . . . . . . . . . Recycled Matter . | . . . . . . . . . . . . . . . . . . . . . . . . . . . . . . . . . . Retrieved Matter . | . . . . . . . . . . . . . . . . . . . . . . . . . . . . . . . . . . Retrieved Components 2 | . . . 2 . . . . . . . . . . . . . . . . . . . . . . . . . . . . . . Parts Scanalyzed 16 | . . . . . 3 . 2 . . . . . 3 . 2 . . . . 2 . 2 . . . . . 1 . 1 . . . Part Schematics Acquired 16 | . . . . . 3 . 2 . . . . . 3 . 2 . . . . 2 . 2 . . . . . 1 . 1 . . . Parts Damaged 1 | . . . . . . . . . . . . . . . . . . . . 1 . . . . . . . . . . . . . Bothacking | -11 -10 -10 -8 -8 -6 -6 -6 -6 -6 -6 -6 -5 -5 -5 -5 -5 -5 -5 -5 -4 -4 -4 -4 -4 -4 -3 -3 -3 -2 -2 -2 -1 -1 ------------ Run | Yrd Mat Sub Rec Scr Fac Was Fac Low Low Zio Dee Pro Fac Was Fac Ext Cet Arc Hub Fac Was Fac Upp Upp Zhi Pro Res Qua Res Tes Frg Acc Com Used RIF Installer . | . . . . . . . . . . . . . . . . . . . . . . . . . . . . . . . . . . Robots Hacked 36 | . . . . 7 1 . 1 . . 1 . . 1 . 4 . . 1 . . . 2 . . . . . 5 . . . 12 1 Non-combat 11 | . . . . 1 1 . 1 . . . . . 1 . 4 . . 1 . . . 2 . . . . . . . . . . . Combat 20 | . . . . 6 . . . . . 1 . . . . . . . . . . . . . . . . . . . . . 12 1 Robot Hacks Applied 23 | . . . . 7 1 . 2 . . 1 . . 1 . 7 . . 1 . . . 3 . . . . . . . . . . . parse_system 10 | . . . . 7 . . . . . 1 . . . . 2 . . . . . . . . . . . . . . . . . . no_distress 6 | . . . . . . . 1 . . . . . . . 3 . . . . . . 2 . . . . . . . . . . . find_chute 1 | . . . . . . . . . . . . . 1 . . . . . . . . . . . . . . . . . . . . find_fabricator 3 | . . . . . . . 1 . . . . . . . 1 . . . . . . 1 . . . . . . . . . . . find_dsf 1 | . . . . . . . . . . . . . . . 1 . . . . . . . . . . . . . . . . . . check_alert 2 | . . . . . 1 . . . . . . . . . . . . 1 . . . . . . . . . . . . . . . Manual 5 | . . . . . . . . . . . . . . . . . . . . . . . . . . . . 5 . . . . . Relay Couplers Released . | . . . . . . . . . . . . . . . . . . . . . . . . . . . . . . . . . . Fabnet Peak Effective % 15 | . . . . . . . . . . . . . . . . . . . . . . . . . . . . . . . . 15 15 Autooverrided 13 | . . . . . . . . . . . . . . . . . . . . . . . . . . . . . . . . 12 1 Robots Rewired 21 | . . . . . . . . . . . . . . . . 21 . . . . . . . . . . . . . . . . . Allies Hacked 1 | . . . . . . . . . . . . . . . . . . . . . . . . . . . . . . . 1 . . Hacks Repelled 1 | . . . . . . . . . . . . . . . 1 . . . . . . . . . . . . . . . . . . Allies | -11 -10 -10 -8 -8 -6 -6 -6 -6 -6 -6 -6 -5 -5 -5 -5 -5 -5 -5 -5 -4 -4 -4 -4 -4 -4 -3 -3 -3 -2 -2 -2 -1 -1 -------- Run | Yrd Mat Sub Rec Scr Fac Was Fac Low Low Zio Dee Pro Fac Was Fac Ext Cet Arc Hub Fac Was Fac Upp Upp Zhi Pro Res Qua Res Tes Frg Acc Com Total Allies 82 | . . . . . 1 1 1 . . . . . 3 20 2 25 5 . . 1 . 2 . . . . 2 1 2 . 3 12 1 Largest Group 20 | . . . . . 1 1 1 . . . . . 1 20 5 12 12 9 6 1 . 1 . . . . 1 1 1 . 2 2 1 Highest-Rated Group 747 | . . . . . 10 31 10 . . . . . 26 747 125 452 701 701 442 10 . 26 . . . . 45 45 26 . 178 333 60 Highest-Rated Ally 173 | . . . . . 10 31 10 . . . . . 26 50 26 159 159 143 96 10 . 26 . . . . 45 45 26 . 89 173 60 Total Orders 2 | . . . . . . . . . . . . . . . . . . 2 . . . . . . . . . . . . . . . ROAM 1 | . . . . . . . . . . . . . . . . . . 1 . . . . . . . . . . . . . . . FOLLOW 1 | . . . . . . . . . . . . . . . . . . 1 . . . . . . . . . . . . . . . Ally Attacks 397 | . . . . . . . . . . . . . . . 75 143 44 29 67 . . . . . . . . . . . 18 17 4 Total Damage 9073 | . . . . . . . . . . . . . . . 1056 2903 977 1184 2053 . . . . . . . . . . . 156 590 154 Kills 56 | . . . . . . . . . . . . . . . 9 18 6 4 18 . . . . . . . . . . . . 1 . Allies Corrupted 2 | . . . . . . . . . . . . . . . . . . . . . . . . . . . . . . . 2 . . Allies Melted 5 | . . . . . . . . . . . . . . . . . . . . . . . . . . . . . . . 5 . . Intel | -11 -10 -10 -8 -8 -6 -6 -6 -6 -6 -6 -6 -5 -5 -5 -5 -5 -5 -5 -5 -4 -4 -4 -4 -4 -4 -3 -3 -3 -2 -2 -2 -1 -1 ------- Run | Yrd Mat Sub Rec Scr Fac Was Fac Low Low Zio Dee Pro Fac Was Fac Ext Cet Arc Hub Fac Was Fac Upp Upp Zhi Pro Res Qua Res Tes Frg Acc Com Active Infowar (turns) 15826 | 6 274 472 309 92 1238 29 1071 110 84 312 87 129 1085 69 1521 681 286 174 128 182 19 994 91 153 52 125 1134 404 636 355 2556 746 222 Optics 2651 | . 230 472 309 92 1086 29 169 . . . . . . . . . . . . . . . . . . . . . . . . 264 . Sensors 9549 | . . . . . 516 26 1041 110 84 312 87 129 749 69 1428 388 . . . 144 19 994 91 153 52 125 1131 400 636 355 510 . . A.S.S. 2822 | . . . . . . . . . . . . . . . . . . . . . . . . . . . . . . . 1854 746 222 IFF 1728 | . . . . . 515 . . . . . . . . . . 65 286 174 128 182 19 359 . . . . . . . . . . . Terrain 219 | . . . . . . . . . . . . . . . . . . . . . . . 53 153 13 . . . . . . . . Structural 5856 | . . . . . 918 28 670 110 84 312 87 129 69 . 1002 389 . . . . . 428 . . . . 802 379 449 . . . . Seismic 50 | 6 44 . . . . . . . . . . . . . . . . . . . . . . . . . . . . . . . . Cloaking 3615 | . . . . . . . . . . 2 . . . . . . . . . . . . . . . . . . 82 308 2263 738 222 ECM 3789 | . . . . . 368 29 16 . . 1 . . 1019 69 873 . . . . 2 . 142 . . . 17 703 115 361 . 74 . . Robot Analysis Total 22 | . 2 . 1 6 . . . . . . . . 1 . 1 . . . . 1 . 5 . . 4 . 1 . . . . . . Derelict Logs Recovered 13 | . . 2 . 1 . . . 2 2 2 . 2 . . . . . . . . . . . 2 . . . . . . . . . Drone Launches . | . . . . . . . . . . . . . . . . . . . . . . . . . . . . . . . . . . Drone Recoveries . | . . . . . . . . . . . . . . . . . . . . . . . . . . . . . . . . . . Exploration | -11 -10 -10 -8 -8 -6 -6 -6 -6 -6 -6 -6 -5 -5 -5 -5 -5 -5 -5 -5 -4 -4 -4 -4 -4 -4 -3 -3 -3 -2 -2 -2 -1 -1 ------------- Run | Yrd Mat Sub Rec Scr Fac Was Fac Low Low Zio Dee Pro Fac Was Fac Ext Cet Arc Hub Fac Was Fac Upp Upp Zhi Pro Res Qua Res Tes Frg Acc Com Turns Passed 17139 | 45 589 472 309 448 1240 29 1079 110 84 312 87 129 1086 69 1526 800 286 174 128 182 19 994 91 153 52 125 1134 406 661 372 2970 746 232 Spaces Moved 37644 | 42 995 886 510 1196 2356 77 2252 317 263 771 275 438 2292 160 3238 987 210 107 284 479 73 2323 236 383 149 416 3045 1313 1651 1002 6958 1531 429 Core 257 | 42 205 . . 1 . . . . . . . . . . . . . . . . . . . . . . . . . . 9 . . Treads 1 | . 1 . . . . . . . . . . . . . . . . . . . . . . . . . . . . . . . . Legs . | . . . . . . . . . . . . . . . . . . . . . . . . . . . . . . . . . . Wheels . | . . . . . . . . . . . . . . . . . . . . . . . . . . . . . . . . . . Hover . | . . . . . . . . . . . . . . . . . . . . . . . . . . . . . . . . . . Flight 37386 | . 789 886 510 1195 2356 77 2252 317 263 771 275 438 2292 160 3238 987 210 107 284 479 73 2323 236 383 149 416 3045 1313 1651 1002 6949 1531 429 Fastest Speed 5 | 50 37 37 37 32 24 26 26 28 28 28 28 28 24 26 24 26 26 27 23 23 24 24 28 28 20 19 5 8 6 6 5 25 30 Average Speed 24 | 50 40 37 37 34 25 26 27 28 28 29 29 28 25 33 26 26 28 27 26 23 24 28 28 28 24 19 14 13 9 11 23 30 31 Slowest Speed 1150 | 50 160 120 37 117 103 26 28 28 28 31 31 28 26 103 30 27 96 27 27 24 24 29 28 28 100 20 86 14 11 12 1150 33 33 Overloaded Moves 184 | . . . . . . . . . . . . . . . . . . . . . . 14 . . . . 21 20 53 14 62 . . Propulsion Burnouts . | . . . . . . . . . . . . . . . . . . . . . . . . . . . . . . . . . . Robots Hopped 266 | . 14 4 6 . 11 6 6 . 1 . 1 . 10 . 22 26 . . 7 . 1 19 . . . 1 22 34 27 9 33 3 3 Potential Cave-ins 14 | . . . . . . . . . . . . . 2 . . . . . . . . . . . . . . . . . 10 . 2 Cave-ins Triggered 1 | . . . . . . . . . . . . . . . . . . . . . . . . . . . . . . . 1 . . Teleports 167 | . . . . . . . . . . . . . . . . . . . . . . . . . . . . . . . 118 38 11 Exploration Rate (%) 65 | 3 98 65 92 89 62 76 66 52 61 85 69 70 68 84 70 80 71 81 33 13 82 72 49 52 62 59 84 94 51 80 91 52 23 Regions Visited 33 Branch Regions 20 Pre-discovered Areas 36 | . . 1 8 6 2 . 5 1 . 2 . . 2 . 1 . . . . . . 1 . . 3 . 1 2 1 . . . . Known Exits Taken 25 | . 1 1 . 1 . . 1 1 1 1 1 1 . . 1 1 1 1 1 . . 1 1 1 1 1 1 1 1 1 1 1 . Unknown Exits Taken 2 | 1 . . 1 . . . . . . . . . . . . . . . . . . . . . . . . . . . . . . Scrap Searched 27 | . . 2 . 8 . . . 3 3 2 . 2 . . . . . . . . . . 2 2 . 3 . . . . . . . Spaces Dug 502 | . . 4 . . 48 . 45 2 2 . 2 . 45 . 59 7 . . 15 5 . 49 2 12 . 4 60 13 38 12 57 15 6 Terrain Destroyed 727 | . . 4 . . 91 . 98 2 2 . 2 . 45 . 59 7 . . 15 5 . 49 2 12 . 4 60 13 38 12 108 78 21 Melee 464 | . . 4 . . 48 . 45 2 2 . 2 . 45 . 58 7 . . 15 5 . 49 2 12 . 4 60 13 38 12 26 15 . Projectile 61 | . . . . . . . . . . . . . . . 1 . . . . . . . . . . . . . . . 25 14 21 AOE 167 | . . . . . 43 . 53 . . . . . . . . . . . . . . . . . . . . . . . 57 14 . Terrain Rammed . | . . . . . . . . . . . . . . . . . . . . . . . . . . . . . . . . . . Walls Destroyed . | . . . . . . . . . . . . . . . . . . . . . . . . . . . . . . . . . . Machines Disabled . | . . . . . . . . . . . . . . . . . . . . . . . . . . . . . . . . . . Actions | -11 -10 -10 -8 -8 -6 -6 -6 -6 -6 -6 -6 -5 -5 -5 -5 -5 -5 -5 -5 -4 -4 -4 -4 -4 -4 -3 -3 -3 -2 -2 -2 -1 -1 --------- Run | Yrd Mat Sub Rec Scr Fac Was Fac Low Low Zio Dee Pro Fac Was Fac Ext Cet Arc Hub Fac Was Fac Upp Upp Zhi Pro Res Qua Res Tes Frg Acc Com Total 43783 | 55 1106 974 622 1236 2891 79 2591 333 269 826 276 441 2702 174 3738 1430 426 242 305 540 72 2543 256 407 163 443 3577 1457 2025 1222 8144 1710 508 Wait 4130 | . 29 53 116 5 355 3 206 9 1 19 . 2 309 11 333 339 203 119 6 40 1 116 18 11 . 12 395 96 301 193 788 5 36 Move 37128 | 41 967 877 497 1195 2334 67 2239 316 260 770 272 437 2273 159 3197 945 209 106 271 479 70 2288 235 382 148 413 3003 1248 1599 984 6899 1525 423 Hop 216 | . 13 4 6 . 10 3 6 . 1 . 1 . 9 . 18 15 . . 5 . 1 14 . . . 1 19 30 24 8 24 2 2 Pick Up 170 | 2 11 1 2 7 14 1 5 . 2 . . . 8 . 5 3 . . 3 3 . 10 . . 1 . 4 8 10 2 51 11 6 Fast Attach 195 | 4 5 1 . 3 16 2 7 1 . 2 . 1 9 1 17 4 1 3 . 3 . 5 1 . 7 4 25 9 11 8 36 6 3 Attach 118 | . 4 2 . 3 7 1 5 . 1 . . . 12 . 11 2 2 1 3 1 . 6 . . 1 . 2 4 4 . 30 10 6 Detach 41 | . 3 1 . 1 2 . 1 . . . . . 2 1 2 1 1 . 1 1 . . . . . 1 1 4 . 1 13 1 3 Swap 165 | . 3 3 . 5 21 . 18 2 . 2 1 . 13 1 27 3 1 . 1 2 . 4 . 1 . 1 14 7 11 . 20 2 2 Drop 290 | . 10 4 . 10 22 2 12 2 2 3 . . 9 1 22 1 1 5 . 6 . 13 . 1 6 4 32 15 18 10 58 11 10 Fire 240 | 8 61 11 . . 3 . 4 1 . 2 . . . . 2 . 6 . . . . . . . . . 1 . . . 42 87 12 Melee 807 | . . 17 1 7 71 . 78 2 2 1 2 1 58 . 104 84 2 8 15 5 . 68 2 12 . 7 81 36 47 16 58 19 3 Ram . | . . . . . . . . . . . . . . . . . . . . . . . . . . . . . . . . . . Kick . | . . . . . . . . . . . . . . . . . . . . . . . . . . . . . . . . . . Crush . | . . . . . . . . . . . . . . . . . . . . . . . . . . . . . . . . . . Escape Stasis 164 | . . . . . 30 . 10 . . . . . . . . 25 . . . . . 19 . . . . . . . . 47 31 2 Rewire . | . . . . . . . . . . . . . . . . . . . . . . . . . . . . . . . . . . Trap 6 | . . . . . 6 . . . . . . . . . . . . . . . . . . . . . . . . . . . . Miscellaneous 113 | . . . . . . . . . . 27 . . . . . 8 . . . . . . . . . . . . . . 78 . . Route ------- -11/Scrapyard -10/Materials (discovered 5 exits: *Mat x3 / *Min / *Sub) -10/Subcaves (discovered 3 exits: *Mat x2 / *Rec) -8/Recycling (discovered 2 exits: *Fac / *Scr) -8/Scraptown -6/Factory (discovered 6 exits: *Fac x4 / *Low x2) -6/Waste -6/Factory (discovered 5 exits: *Fac x3 / *Low x2) -6/Lower Caves -6/Lower Caves (discovered 2 exits: *Fac / *Zio) -6/Zion (discovered 2 exits: *Dee / [*Pro]) -6/Deep Caves -5/Proximity Caves -5/Factory (discovered 7 exits: *Fac x3 / *Upp x2 / Ext x2) -5/Waste -5/Factory (discovered 8 exits: *Fac x4 / *Upp x2 / *Ext x2) -5/Extension (discovered 2 exits: *Fac / *Cet) -5/Cetus -5/Archives (discovered 2 exits: *Fac / *Hub) -5/Hub_04(d) (discovered 2 exits: *Fac x2) -4/Factory (discovered 6 exits: *Res x4 / Upp x2) -4/Waste -4/Factory (discovered 6 exits: *Res x4 / *Upp x2) -4/Upper Caves -4/Upper Caves (discovered 2 exits: Res / *Zhi) -4/Zhirov -3/Proximity Caves -3/Research (discovered 6 exits: *Res x3 / *Arm / *Qua x2) -3/Quarantine -2/Research (discovered 4 exits: *Acc x3 / *Tes) -2/Testing (discovered 3 exits: *Acc / *Sec / *Frg) -2/Protoforge -1/Access -1/Command To Epsilon Eridani History --------- Turn | Location | Event 3 | -11/Scrapyard | Discovered new exit (range 16) 46 | -11/Scrapyard | Entered Materials 123 | -10/Materials | Discovered new exit (range 22) 176 | -10/Materials | Discovered new exit (range 15) 310 | -10/Materials | Build established: Mutant 310 | -10/Materials | Discovered new exit (range 16) 411 | -10/Materials | Learned 2 Mines zone layouts 445 | -10/Materials | Learned Storage stockpile data 468 | -10/Materials | Identified exit to Materials 468 | -10/Materials | Identified exit to Mines 468 | -10/Materials | Identified exit to Subcaves 489 | -10/Materials | Learned location of 2 exits from Subcaves 490 | -10/Materials | Learned Storage stockpile data 493 | -10/Materials | Learned location of 2 exits from Mines 635 | -10/Materials | Entered Subcaves 636 | -10/Subcaves | Approached by a straggling Scientist 636 | -10/Subcaves | Identified exit to Materials 636 | -10/Subcaves | Identified exit to Recycling 640 | -10/Subcaves | Shifting Twisted Machinery released Battle Rifle 676 | -10/Subcaves | Shifting Twisted Machinery released Sub. Beam Cannon 678 | -10/Subcaves | A swath of the cavern ceiling suddenly collapsed 726 | -10/Subcaves | Learned 2 Materials zone layouts 729 | -10/Subcaves | Disturbed a concealed Subdweller 739 | -10/Subcaves | Learned Materials terminal intel 740 | -10/Subcaves | Ambushed by Subdwellers from Twisted Machinery 750 | -10/Subcaves | Discovered exit to Materials (range 6) 762 | -10/Subcaves | Shifting Twisted Machinery released Sub. Shrapnel Launcher 767 | -10/Subcaves | Shifting Twisted Machinery released Riot Gun 933 | -10/Subcaves | A swath of the cavern ceiling suddenly collapsed 988 | -10/Subcaves | Learned location of Zion (-6) 988 | -10/Subcaves | Met a Zionite searching for "candidates" 1026 | -10/Subcaves | Core integrity fell below 50% 1092 | -10/Subcaves | Core integrity fell below 20% 1107 | -10/Subcaves | Entered Recycling 1194 | -8/Recycling | Discovered new exit (range 11) 1291 | -8/Recycling | Scanned before Scraplab entrance 1296 | -8/Recycling | Entered Scraplab 1299 | -8/Recycling | Discovered new exit (range 3) 1300 | -8/Recycling | Learned location of 3 exits from Factory 1333 | -8/Recycling | Learned Storage garrison access intel 1358 | -8/Recycling | Learned location of 1 exit from Recycling 1373 | -8/Recycling | Learned location of 1 exit from Recycling 1379 | -8/Recycling | Learned location of Storage (-8) 1388 | -8/Recycling | Learned 4 Lower Caves zone layouts 1406 | -8/Recycling | Identified exit to Factory 1416 | -8/Recycling | Entered Scraptown 1480 | -8/Scraptown | Scanned Subdweller tech in exchange for log data 1482 | -8/Scraptown | Learned location of Warlord (-5) 1490 | -8/Scraptown | Visited Supply Room 1500 | -8/Scraptown | Visited Bundlers 1528 | -8/Scraptown | Visited The Evicted 1572 | -8/Scraptown | Visited Assassins FH 1577 | -8/Scraptown | Visited Science Testing Area 1582 | -8/Scraptown | Visited UFD Registry 1582 | -8/Scraptown | Registered with UFD as "Wrenchtail" 1587 | -8/Scraptown | Visited IN-MT5's Study 1598 | -8/Scraptown | Visited CPS Storage 1618 | -8/Scraptown | Visited LU-1G1's Boring Crew 1633 | -8/Scraptown | Visited Analyses Database 1640 | -8/Scraptown | Visited Science Guys 1688 | -8/Scraptown | Visited DA-N13 Charitable Foundation 1689 | -8/Scraptown | Found DCF Scrap (29 items) 1707 | -8/Scraptown | Visited Scrap Suit Storage 1711 | -8/Scraptown | Visited Research Penetration Think Tank 1717 | -8/Scraptown | Visited Modified Component R&D 1739 | -8/Scraptown | Visited Abandonware Association 1743 | -8/Scraptown | Learned abandonware demo "TRNCOAT.EXE" 1751 | -8/Scraptown | Visited Chapter 10 1757 | -8/Scraptown | Visited Cartography Club 1769 | -8/Scraptown | Found Surveybot 17 Chip 1782 | -8/Scraptown | Found Deep Structural Scanner 1786 | -8/Scraptown | Learned location of Lower Caves (-6) 1786 | -8/Scraptown | Learned location of Armory (-3) 1786 | -8/Scraptown | Learned 8 Materials zone layouts 1786 | -8/Scraptown | Learned 20 Factory zone layouts 1786 | -8/Scraptown | Learned 24 Factory zone layouts 1786 | -8/Scraptown | Learned 4 Storage zone layouts 1786 | -8/Scraptown | Learned 8 Lower Caves zone layouts 1786 | -8/Scraptown | Learned 8 Upper Caves zone layouts 1786 | -8/Scraptown | Learned 20 Proximity Caves zone layouts 1786 | -8/Scraptown | Learned location of 1 exit from Factory 1786 | -8/Scraptown | Learned location of 2 exits from Factory 1786 | -8/Scraptown | Learned location of 2 exits from Proximity Caves 1844 | -8/Scraptown | Met Optimus 1844 | -8/Scraptown | Accepted into 0bPrime 1862 | -8/Scraptown | Discovered exit to Factory (range 3) 1864 | -8/Scraptown | Entered Factory 1864 | -6/Factory | Evolved 8 slots: Propulsion x3, Utility x5 1865 | -6/Factory | Identified exit to Factory 1865 | -6/Factory | Identified exit to Lower Caves 2125 | -6/Factory | Loaded intel: 8 recycling unit locations 2166 | -6/Factory | Learned location of Protoforge (-2) 2196 | -6/Factory | Fabricated Cesium-ion Thruster (x2) 2580 | -6/Factory | Repaired Cesium-ion Thruster 2655 | -6/Factory | Loaded intel: 6 repair station locations 2716 | -6/Factory | Repaired Cesium-ion Thruster 2717 | -6/Factory | Learned location of Extension (-5) 2756 | -6/Factory | Learned 2 Proximity Caves zone layouts 2788 | -6/Factory | Learned Factory repair station intel 3015 | -6/Factory | Cargo convoy interrupted 3104 | -6/Factory | Sucked down chute 3104 | -6/Factory | Entered Waste 3105 | -6/Waste | Met a frightened Derelict 3110 | -6/Waste | Spotted C-40 Crusher 3111 | -6/Waste | Found Prototype Device 3113 | -6/Waste | Spotted C-40 Crusher 3113 | -6/Waste | Spotted C-40 Crusher 3116 | -6/Waste | Spotted C-40 Crusher 3116 | -6/Waste | Spotted C-40 Crusher 3119 | -6/Waste | EMP discharged 3119 | -6/Waste | System corruption reached 10% 3121 | -6/Waste | Spotted C-40 Crusher 3126 | -6/Waste | Discovered new exit (range 10) 3128 | -6/Waste | Identified exit to Factory 3129 | -6/Waste | Found Heavy Servo Lattice 3133 | -6/Waste | Entered Factory 3135 | -6/Factory | Loaded intel: 6 repair station locations 3139 | -6/Factory | Loaded intel: 8 recycling unit locations 3147 | -6/Factory | Identified System Purifier 3173 | -6/Factory | Spotted B-75 Beast 3488 | -6/Factory | Fabricated Adv. Hacking Suite (x1) 3520 | -6/Factory | Fabricated Q-thruster (x2) 3550 | -6/Factory | Fabricated Adv. Hacking Suite (x1) 3681 | -6/Factory | Learned location of Proximity Caves (-3) 3750 | -6/Factory | Learned location of Proximity Caves (-5) 3852 | -6/Factory | Build established: Hacker-Scout 3927 | -6/Factory | Discovered exit to Factory (range 13) 3963 | -6/Factory | Repaired Nuclear Pulse Thruster 3989 | -6/Factory | Learned location of Proximity Caves (-5) 4031 | -6/Factory | Learned location of 2 exits from Archives 4147 | -6/Factory | Repaired Lgt. Fission Core 4212 | -6/Factory | Entered Lower Caves 4213 | -6/Lower Caves | Identified exit to Lower Caves 4291 | -6/Lower Caves | Learned Research security intel 4291 | -6/Lower Caves | Learned Research terminal intel 4316 | -6/Lower Caves | Encountered a Warlord checkpoint 4322 | -6/Lower Caves | Entered another Lower Caves area 4322 | -6/Lower Caves | Discovered exit to Factory (range 8) 4352 | -6/Lower Caves | Learned location of 1 exit from Factory 4368 | -6/Lower Caves | Learned Factory trap positions 4392 | -6/Lower Caves | Discovered new exit (range 8) 4393 | -6/Lower Caves | Identified exit to Zion 4406 | -6/Lower Caves | Entered Zion 4411 | -6/Zion | Learned Factory security intel 4422 | -6/Zion | Discovered new exit (range 15) 4482 | -6/Zion | Identified exit to Deep Caves 4511 | -6/Zion | Turned away by Imprinter 4581 | -6/Zion | Learned location of Quarantine (-3) 4717 | -6/Zion | Saw the warning signs outside the Deep Caves entrance 4718 | -6/Zion | Entered Deep Caves 4754 | -6/Deep Caves | Z-Facility disabled 4772 | -6/Deep Caves | Attacked by Z-Imprinter 4802 | -6/Deep Caves | Discovered new exit (range 10) 4805 | -6/Deep Caves | Identified exit to Proximity Caves 4805 | -6/Deep Caves | Entered Proximity Caves 4868 | -5/Proximity Caves | Learned Factory terminal intel 4902 | -5/Proximity Caves | Learned Factory machine intel 4934 | -5/Proximity Caves | Entered Factory 4934 | -5/Factory | Evolved 2 slots: Power x1, Propulsion x1 4935 | -5/Factory | Identified exit to Upper Caves 4935 | -5/Factory | Identified exit to Extension 4936 | -5/Factory | Identified exit to Factory 4937 | -5/Factory | Loaded intel: 114 trap records 4939 | -5/Factory | Loaded intel: 260 machine locations 4940 | -5/Factory | Loaded intel: 28 terminal locations 4976 | -5/Factory | Fabricated Q-thruster (x2) 5013 | -5/Factory | Discovered exit to Upper Caves (range 10) 5029 | -5/Factory | Loaded intel: 8 recycling unit locations 5041 | -5/Factory | Spotted B-75 Beast 5124 | -5/Factory | Lost 4 parts (1n2u1w) 5239 | -5/Factory | Loaded intel: 6 repair station locations 5247 | -5/Factory | Repaired Nuclear Pulse Thruster 5269 | -5/Factory | Learned location of 1 exit from Armory 5289 | -5/Factory | Learned Research emergency access door positions 5299 | -5/Factory | Learned Research stockpile data 5303 | -5/Factory | Learned location of 1 exit from Proximity Caves 5342 | -5/Factory | Fabricated Adv. Hacking Suite (x1) 5402 | -5/Factory | Build established: Hacker-Sprinter 5431 | -5/Factory | Repaired Lgt. Fission Core 5507 | -5/Factory | Central database locked down 5619 | -5/Factory | Learned Research trap positions 5660 | -5/Factory | Learned Extension stockpile data 5690 | -5/Factory | Learned location of 1 exit from Upper Caves 5719 | -5/Factory | Learned location of 1 exit from Research 5720 | -5/Factory | Learned Extension security intel 5729 | -5/Factory | Learned Factory trap positions 5749 | -5/Factory | Learned 2 Armory zone layouts 5800 | -5/Factory | Cargo convoy interrupted 5819 | -5/Factory | Learned Quarantine security intel 6020 | -5/Factory | Sucked down chute 6020 | -5/Factory | Entered Waste 6021 | -5/Waste | Joined by Warlord forces that had cleared the area 6021 | -5/Waste | Identified exit to Factory 6089 | -5/Waste | Entered Factory 6089 | -5/Factory | Accompanied by 5 allies 6091 | -5/Factory | Loaded intel: 86 trap records 6315 | -5/Factory | Loaded intel: 8 recycling unit locations 6468 | -5/Factory | Fabricated Q-thruster (x2) 6479 | -5/Factory | Garrison activated, responded to threat 6505 | -5/Factory | Fabricated Q-thruster? 6644 | -5/Factory | Central database locked down 6682 | -5/Factory | Adv. Hacking Suite fried by hacking feedback 6697 | -5/Factory | Learned Research emergency access door positions 6738 | -5/Factory | Learned 2 Proximity Caves zone layouts 6790 | -5/Factory | Learned location of 2 exits from Proximity Caves 6791 | -5/Factory | Learned Testing trap positions 6798 | -5/Factory | Learned 2 Upper Caves zone layouts 6814 | -5/Factory | Learned Armory emergency access door positions 6842 | -5/Factory | Loaded intel: 4 garrison access locations 6894 | -5/Factory | Discovered exit to Extension (range 6) 7096 | -5/Factory | Discovered exit to Factory (range 14) 7147 | -5/Factory | Cargo convoy interrupted 7352 | -5/Factory | Found Prototype Device 7352 | -5/Factory | Identified Exp. EM Shield 7364 | -5/Factory | Found Prototype Device 7364 | -5/Factory | Identified Exp. Shock Absorption System 7370 | -5/Factory | Found Prototype Launcher 7370 | -5/Factory | Identified Ragnarok Missile Launcher 7475 | -5/Factory | Discovered exit to Upper Caves (range 14) 7501 | -5/Factory | Spotted B-75 Beast 7511 | -5/Factory | Learned Testing emergency access door positions 7537 | -5/Factory | Learned 8 Testing zone layouts 7546 | -5/Factory | Lost 3 parts (1p2u) 7553 | -5/Factory | Learned location of 1 exit from Quarantine 7557 | -5/Factory | Learned Research security intel 7559 | -5/Factory | Learned location of 2 exits from Factory 7560 | -5/Factory | Learned location of 1 exit from Upper Caves 7602 | -5/Factory | Learned location of 1 exit from Testing 7615 | -5/Factory | Entered Extension 7938 | -5/Extension | Spotted B-75 Beast 8001 | -5/Extension | Spotted B-75 Beast 8061 | -5/Extension | Rescued a captive Derelict 8077 | -5/Extension | Rescued a captive Derelict 8080 | -5/Extension | Rescued a captive Derelict 8082 | -5/Extension | Rescued a captive Derelict 8103 | -5/Extension | Allies destroyed B-75 Beast 8107 | -5/Extension | Allies destroyed B-75 Beast 8132 | -5/Extension | Lost 3 allies 8255 | -5/Extension | Rescued A7 8347 | -5/Extension | Discovered exit to Factory (range 10) 8347 | -5/Extension | Discovered new exit (range 6) 8352 | -5/Extension | Identified exit to Cetus 8415 | -5/Extension | Entered Cetus 8415 | -5/Cetus | Accompanied by 12 allies (A7) 8420 | -5/Cetus | Acquired a Cetus Manufacturing Module code from A7 8428 | -5/Cetus | Spotted Cetus Guard 8428 | -5/Cetus | Spotted Cetus Guard 8428 | -5/Cetus | Spotted Cetus Guard 8432 | -5/Cetus | Spotted Cetus Guard 8447 | -5/Cetus | Allies destroyed Cetus Guard 8458 | -5/Cetus | Allies destroyed Cetus Guard 8462 | -5/Cetus | Allies destroyed Cetus Guard 8463 | -5/Cetus | Allies destroyed Cetus Guard 8485 | -5/Cetus | Lost 8 allies 8509 | -5/Cetus | Started Cetus Manufacturing Module 8534 | -5/Cetus | Manufactured an Enhanced Grunt 8546 | -5/Cetus | Escorted A7 to Cetus Mainframe 8559 | -5/Cetus | Manufactured an Enhanced Grunt 8584 | -5/Cetus | Manufactured an Enhanced Grunt 8609 | -5/Cetus | Manufactured an Enhanced Grunt 8634 | -5/Cetus | Manufactured an Enhanced Grunt 8655 | -5/Cetus | Discovered new exit (range 15) 8659 | -5/Cetus | Identified exit to Archives 8701 | -5/Cetus | Entered Archives 8701 | -5/Archives | Accompanied by 9 allies (A7) 8702 | -5/Archives | Identified exit to Hub_04(d) 8706 | -5/Archives | Received a hacking code to weaken MAIN.C 8783 | -5/Archives | Unable to access archive contents 8875 | -5/Archives | Entered Hub_04(d) 8875 | -5/Hub_04(d) | Accompanied by 6 allies 8906 | -5/Hub_04(d) | Discovered exit to Factory (range 9) 8942 | -5/Hub_04(d) | Network Hub disabled 8974 | -5/Hub_04(d) | Discovered exit to Factory (range 16) 8996 | -5/Hub_04(d) | Spotted Lightning 8998 | -5/Hub_04(d) | Spotted Lightning 8998 | -5/Hub_04(d) | Spotted Lightning 9003 | -5/Hub_04(d) | Entered Factory 9003 | -4/Factory | Evolved 2 slots: Utility x2 9004 | -4/Factory | Identified exit to Research 9004 | -4/Factory | Identified exit to Upper Caves 9008 | -4/Factory | Found Prototype Device 9008 | -4/Factory | Identified Exp. ECM Suite 9167 | -4/Factory | Fabricated Lgt. Neutrino Core (x1) 9178 | -4/Factory | Learned Armory emergency access door positions 9185 | -4/Factory | Sucked down chute 9185 | -4/Factory | Entered Waste 9187 | -4/Waste | Spotted C-40 Crusher 9191 | -4/Waste | Spotted C-40 Crusher 9192 | -4/Waste | Spotted C-40 Crusher 9193 | -4/Waste | Spotted C-40 Crusher 9198 | -4/Waste | Spotted C-40 Crusher 9200 | -4/Waste | EMP discharged 9202 | -4/Waste | Discovered new exit (range 10) 9204 | -4/Waste | Entered Factory 9275 | -4/Factory | Repaired Lgt. Angular Momentum Engine 9290 | -4/Factory | Loaded intel: 8 recycling unit locations 9666 | -4/Factory | Discovered exit to Research (range 12) 9666 | -4/Factory | Spotted Striker 9666 | -4/Factory | Spotted Striker 9667 | -4/Factory | Cargo convoy interrupted 9689 | -4/Factory | Learned Research scanalyzer intel 9759 | -4/Factory | Learned Testing scanalyzer intel 9818 | -4/Factory | Learned Research emergency access door positions 9902 | -4/Factory | Learned location of 1 exit from Upper Caves 9905 | -4/Factory | Spotted B-86 Titan 9971 | -4/Factory | Learned 4 Upper Caves zone layouts 10005 | -4/Factory | Central database locked down 10007 | -4/Factory | Build established: Hacker-Ninja 10019 | -4/Factory | Learned 8 Research zone layouts 10198 | -4/Factory | Entered Upper Caves 10199 | -4/Upper Caves | Identified exit to Upper Caves 10289 | -4/Upper Caves | Entered another Upper Caves area 10291 | -4/Upper Caves | Identified exit to Zhirov 10368 | -4/Upper Caves | Learned Research terminal intel 10442 | -4/Upper Caves | Entered Zhirov 10442 | -4/Zhirov | Discovered new exit (range 3) 10444 | -4/Zhirov | Identified exit to Proximity Caves 10448 | -4/Zhirov | Met Zhirov 10456 | -4/Zhirov | Found Alien Artifact 10456 | -4/Zhirov | Identified Integrated Dissipator 10456 | -4/Zhirov | Installed Integrated Dissipator, increased core heat dissipation (+20) 10479 | -4/Zhirov | Found Alien Artifact 10485 | -4/Zhirov | Learned location of Testing (-2) 10488 | -4/Zhirov | Zhirov requested help retrieving the SGEMP Prototype 10494 | -4/Zhirov | Entered Proximity Caves 10497 | -3/Proximity Caves | Spotter reported a threat 10497 | -3/Proximity Caves | Spotter reported a threat 10527 | -3/Proximity Caves | Acquired the password to a Derelict Tinkerer's latest research 10529 | -3/Proximity Caves | Found Prototype Special Weapon 10529 | -3/Proximity Caves | Identified Molecular Deconstructor 10619 | -3/Proximity Caves | Entered Research 10619 | -3/Research | Evolved 2 slots: Propulsion x2 10620 | -3/Research | Identified exit to Armory 10620 | -3/Research | Identified exit to Quarantine 10622 | -3/Research | Identified exit to Research 10623 | -3/Research | Loaded intel: 105 trap records 10627 | -3/Research | Loaded intel: 23 terminal locations 10628 | -3/Research | Loaded intel: 6 scanalyzer locations 10635 | -3/Research | Loaded intel: 5 recycling unit locations 10775 | -3/Research | Build established: Hacker-Sprinter 10900 | -3/Research | Learned Access repair station intel 10939 | -3/Research | Learned Testing terminal intel 10981 | -3/Research | Learned Access stockpile data 10997 | -3/Research | Learned Access garrison access intel 11184 | -3/Research | Fabricated Quantum Reactor (x2) 11202 | -3/Research | Spotted B-86 Titan 11227 | -3/Research | Build established: Hacker-Ninja 11308 | -3/Research | Spotted B-86 Titan 11527 | -3/Research | Found Adv. Micro-nuke Launcher 11572 | -3/Research | Central database locked down 11574 | -3/Research | Central database locked down 11574 | -3/Research | Central database locked down 11656 | -3/Research | Found Prototype Device 11656 | -3/Research | Identified Exp. Thermal Shield 11753 | -3/Research | Entered Quarantine 11773 | -3/Quarantine | Found Alien Artifact 11773 | -3/Quarantine | Identified Phase Armor 11828 | -3/Quarantine | Found Alien Impact Weapon 11863 | -3/Quarantine | Found Alien Artifact 11863 | -3/Quarantine | Identified Phase Redirector 11889 | -3/Quarantine | Found Alien Reactor 11919 | -3/Quarantine | Central database locked down 11921 | -3/Quarantine | System corruption reached 10% 11975 | -3/Quarantine | Learned location of Section 7 (-2) 12019 | -3/Quarantine | Found Alien Artifact 12020 | -3/Quarantine | Found Alien Artifact 12022 | -3/Quarantine | Found Alien Artifact 12026 | -3/Quarantine | Found Alien Artifact 12107 | -3/Quarantine | Learned Section 7 emergency access door positions 12123 | -3/Quarantine | Identified Hpw. Transdimensional Reconstructor (x2) 12123 | -3/Quarantine | Identified Dimensional Node Initializer (x2) 12123 | -3/Quarantine | Identified Matter Drive 12123 | -3/Quarantine | Identified Core Stripper 12130 | -3/Quarantine | Found Alien Artifact 12131 | -3/Quarantine | Identified Subatomic Replicator 12131 | -3/Quarantine | Used Subatomic Replicator to create Alien Artifact 12143 | -3/Quarantine | Identified Supercharged TR 12156 | -3/Quarantine | Found Alien Slashing Weapon 12156 | -3/Quarantine | Identified Sigix Broadsword 12159 | -3/Quarantine | Entered Research 12159 | -2/Research | Evolved 2 slots: Propulsion x2 12160 | -2/Research | Identified exit to Access 12160 | -2/Research | Identified exit to Testing 12163 | -2/Research | Loaded intel: 21 terminal locations 12205 | -2/Research | Spotted B-90 Cyclops 12523 | -2/Research | Loaded intel: 5 recycling unit locations 12542 | -2/Research | Spotted B-90 Cyclops 12644 | -2/Research | Fabricated Adv. Cloaking Device (x2) 12688 | -2/Research | Loaded intel: 92 trap records 12706 | -2/Research | Fabricated Exp. Signal Interpreter (x1) 12820 | -2/Research | Entered Testing 12822 | -2/Testing | Identified exit to Section 7 12823 | -2/Testing | Identified exit to Protoforge 12824 | -2/Testing | Loaded intel: 21 trap records 12826 | -2/Testing | Loaded intel: 8 terminal locations 12827 | -2/Testing | Loaded intel: 3 scanalyzer locations 12853 | -2/Testing | Found Prototype Energy Gun 12853 | -2/Testing | Identified Tachyon Dispersion Ray 12866 | -2/Testing | Found Prototype Energy Cannon 12866 | -2/Testing | Identified Imp. Potential Cannon 12913 | -2/Testing | Build established: Hacker-Sprinter 13082 | -2/Testing | Spotted Fortress 13102 | -2/Testing | Learned Research security intel 13192 | -2/Testing | Entered Protoforge 13218 | -2/Protoforge | Spotted B-90 Cyclops 13282 | -2/Protoforge | Spotted Hotshot 13326 | -2/Protoforge | Spotted Hotshot 13326 | -2/Protoforge | Spotted Hotshot 13331 | -2/Protoforge | Discovered exit to Access (range 15) 13478 | -2/Protoforge | Superfortress began startup sequence 13556 | -2/Protoforge | UFD initiated attack on Protoforge 13556 | -2/Protoforge | Loaded intel: 3 recycling unit locations 13558 | -2/Protoforge | Spotted EXE-6 13558 | -2/Protoforge | Spotted EXE-6 13563 | -2/Protoforge | Found Dimensional Node Initializer 13565 | -2/Protoforge | Found Dimensional Node Initializer 13566 | -2/Protoforge | Initialized slip node 13579 | -2/Protoforge | Spotted Hotshot 13580 | -2/Protoforge | Spotted Hotshot 13581 | -2/Protoforge | Warped through subspace to slip node 13602 | -2/Protoforge | Spotted Hotshot 13602 | -2/Protoforge | Spotted Decapitator 13602 | -2/Protoforge | Spotted Decapitator 13603 | -2/Protoforge | Optimus greeted in Protoforge 13608 | -2/Protoforge | Fabricated X-87 Electro? 13613 | -2/Protoforge | Forge Plexus network access discovered 13624 | -2/Protoforge | Spotted Decapitator 13642 | -2/Protoforge | Lost 15 allies 13702 | -2/Protoforge | Crushed by falling debris 13710 | -2/Protoforge | Found Exp. System Purifier 13733 | -2/Protoforge | Lost 3 parts (1n2u) 13762 | -2/Protoforge | Found Crosscalibrator 13790 | -2/Protoforge | Found Exp. System Purifier 13792 | -2/Protoforge | Spotted Immortal 13792 | -2/Protoforge | Spotted Decapitator 13792 | -2/Protoforge | Spotted Decapitator 13792 | -2/Protoforge | Spotted Decapitator 13792 | -2/Protoforge | Spotted Decapitator 13801 | -2/Protoforge | Spotted V383-t 13801 | -2/Protoforge | Spotted V325-x 13801 | -2/Protoforge | Spotted V702-b 13805 | -2/Protoforge | Found Cep. Fieldthrust Drive 13836 | -2/Protoforge | Spotted Decapitator 13836 | -2/Protoforge | Spotted Decapitator 13836 | -2/Protoforge | Spotted Decapitator 13843 | -2/Protoforge | Found Cep. Antigrav Storage Unit 13844 | -2/Protoforge | Found Cep. Chromion Battery 13854 | -2/Protoforge | Met 7R-MNS 13906 | -2/Protoforge | Spotted Striker 13908 | -2/Protoforge | Spotted Striker 13929 | -2/Protoforge | Lost 3 parts (1p1n1u) 14079 | -2/Protoforge | Spotted V820-b 14079 | -2/Protoforge | Spotted V810-i 14083 | -2/Protoforge | Found Exp. Terror Saw 14085 | -2/Protoforge | Found Cep. Plasma Driver 14086 | -2/Protoforge | Found Cep. Lightning Penetrator 14088 | -2/Protoforge | Found Faulty Cep. Miniperforator 14089 | -2/Protoforge | Found Faulty Cep. Miniperforator 14092 | -2/Protoforge | Found Cep. Deflector Sword 14096 | -2/Protoforge | Found Exp. Jetlance 14111 | -2/Protoforge | Spotted Decapitator 14111 | -2/Protoforge | Spotted Decapitator 14111 | -2/Protoforge | Spotted Decapitator 14111 | -2/Protoforge | Spotted Decapitator 14118 | -2/Protoforge | Spotted V395-f 14118 | -2/Protoforge | Spotted V298-j 14118 | -2/Protoforge | Spotted Immortal 14131 | -2/Protoforge | Found Exp. Active Sensor Suite 14134 | -2/Protoforge | Spotted AP7-3 14134 | -2/Protoforge | Spotted AP7-3 14181 | -2/Protoforge | Additional patrols dispatched to research labs 14185 | -2/Protoforge | Found Cep. Nanofilaments [Tensile] 14185 | -2/Protoforge | Installed Cep. Nanofilaments [Tensile], 3 resistances modified: KI +20%, TH -10%, I +20% 14191 | -2/Protoforge | Found Cep. Navigation Harness 14199 | -2/Protoforge | Found Transdimensional Reconstructor 14225 | -2/Protoforge | Scanned by Researcher 14239 | -2/Protoforge | Found Faulty Cep. Cloak Mesh 14240 | -2/Protoforge | Found Cep. Cloak Mesh 14242 | -2/Protoforge | Spotted V668-l 14256 | -2/Protoforge | Spotted Executioner 14258 | -2/Protoforge | Spotted Executioner 14263 | -2/Protoforge | Core integrity fell below 50% 14263 | -2/Protoforge | Warped through subspace 14293 | -2/Protoforge | Spotted Immortal 14308 | -2/Protoforge | Spotted V735-p 14324 | -2/Protoforge | Lost 13 parts (3p9n1w) 14338 | -2/Protoforge | Core integrity fell below 20% 14347 | -2/Protoforge | UFD reported confirmed Drillbomb installation 14400 | -2/Protoforge | Spotted Striker 14418 | -2/Protoforge | UFD reported confirmed Drillbomb installation 14430 | -2/Protoforge | Spotted Executioner 14430 | -2/Protoforge | Spotted Striker 14461 | -2/Protoforge | Lost 4 allies 14504 | -2/Protoforge | Spotted Executioner 14569 | -2/Protoforge | Spotted Striker 14569 | -2/Protoforge | Spotted Striker 14576 | -2/Protoforge | Found Cep. Concussive Dispersal Blaster 14655 | -2/Protoforge | Found Cep. Chromion Battery 14676 | -2/Protoforge | Build established: Scavenger-Ninja 14680 | -2/Protoforge | Found Cep. Core Shell 14762 | -2/Protoforge | Spotted Striker 14773 | -2/Protoforge | Found UFD Drillbomb 14806 | -2/Protoforge | Installed UFD Drillbomb at designated target 14806 | -2/Protoforge | UFD reported confirmed Drillbomb installation 14823 | -2/Protoforge | Lost 3 allies 14853 | -2/Protoforge | Found UFD Drillbomb 14875 | -2/Protoforge | Installed UFD Drillbomb at designated target 14875 | -2/Protoforge | UFD reported confirmed Drillbomb installation 14884 | -2/Protoforge | Found UFD Drillbomb 14923 | -2/Protoforge | Lost 3 allies 14944 | -2/Protoforge | Installed UFD Drillbomb at designated target 14944 | -2/Protoforge | UFD reported confirmed Drillbomb installation 15192 | -2/Protoforge | Spotted Executioner 15198 | -2/Protoforge | Spotted Executioner 15221 | -2/Protoforge | Found UFD Drillbomb 15225 | -2/Protoforge | Spotted Striker 15228 | -2/Protoforge | Spotted Striker 15228 | -2/Protoforge | Spotted Executioner 15341 | -2/Protoforge | Installed UFD Drillbomb at designated target 15341 | -2/Protoforge | UFD reported confirmed Drillbomb installation 15427 | -2/Protoforge | Spotted Executioner 15427 | -2/Protoforge | Spotted Striker 15427 | -2/Protoforge | Spotted Executioner 15427 | -2/Protoforge | Spotted Executioner 15440 | -2/Protoforge | Found UFD Drillbomb 15473 | -2/Protoforge | Lost 5 allies 15483 | -2/Protoforge | Installed UFD Drillbomb at designated target 15483 | -2/Protoforge | UFD reported confirmed Drillbomb installation 15521 | -2/Protoforge | Found Faulty Cep. Heavy Railcannon 15523 | -2/Protoforge | Found Faulty Cep. Heavy Railcannon 15526 | -2/Protoforge | Found Cep. Rapid Grenade Launcher 15543 | -2/Protoforge | Spotted V289-e 15643 | -2/Protoforge | Found Prototype Device 15643 | -2/Protoforge | Identified Adv. Kinecellerator 15645 | -2/Protoforge | Found Prototype Processor 15645 | -2/Protoforge | Identified Exp. Targeting Computer 15680 | -2/Protoforge | Spotted Striker 15680 | -2/Protoforge | Spotted Striker 15683 | -2/Protoforge | Destroyed Striker 15685 | -2/Protoforge | Spotted Executioner 15686 | -2/Protoforge | Spotted Executioner 15700 | -2/Protoforge | Destroyed Executioner 15702 | -2/Protoforge | Destroyed Executioner 15744 | -2/Protoforge | Destroyed 9 combat bots 15746 | -2/Protoforge | Found UFD Drillbomb 15753 | -2/Protoforge | Lost 5 allies 15778 | -2/Protoforge | Spotted Striker 15780 | -2/Protoforge | Spotted Executioner 15782 | -2/Protoforge | Spotted Executioner 15787 | -2/Protoforge | Spotted Executioner 15787 | -2/Protoforge | Spotted Executioner 15822 | -2/Protoforge | Installed UFD Drillbomb at designated target 15822 | -2/Protoforge | UFD reported confirmed Drillbomb installation 15859 | -2/Protoforge | Found UFD Drillbomb 15886 | -2/Protoforge | Lost 3 allies 15929 | -2/Protoforge | Spotted Executioner 15934 | -2/Protoforge | Spotted Executioner 15965 | -2/Protoforge | Installed UFD Drillbomb at designated target 15965 | -2/Protoforge | UFD reported confirmed Drillbomb installation 15978 | -2/Protoforge | Destroyed Executioner 16001 | -2/Protoforge | Found UFD Drillbomb 16005 | -2/Protoforge | Spotted Executioner 16005 | -2/Protoforge | Spotted Executioner 16027 | -2/Protoforge | Spotted Striker 16039 | -2/Protoforge | Lost 4 allies 16044 | -2/Protoforge | Destroyed Executioner 16049 | -2/Protoforge | Found Exp. Core Analyzer 16129 | -2/Protoforge | UFD reported confirmed Drillbomb installation 16130 | -2/Protoforge | UFD began Drillbomb countdown 16140 | -2/Protoforge | Spotted Executioner 16162 | -2/Protoforge | Entered Access 16162 | -1/Access | Evolved 2 slots: Utility x2 16164 | -1/Access | Loaded intel: 4 repair station locations 16165 | -1/Access | Loaded intel: 6 garrison access locations 16181 | -1/Access | Spotted Striker 16193 | -1/Access | Spotted Striker 16206 | -1/Access | Destroyed Striker 16212 | -1/Access | Destroyed Striker 16256 | -1/Access | Spotted Executioner 16256 | -1/Access | Spotted Executioner 16258 | -1/Access | Destroyed Executioner 16260 | -1/Access | Destroyed Executioner 16377 | -1/Access | Spotted Executioner 16377 | -1/Access | Spotted Executioner 16379 | -1/Access | Destroyed Executioner 16385 | -1/Access | Destroyed Executioner 16401 | -1/Access | Energy Cycler disabled 16412 | -1/Access | First assault squad dispatched 16427 | -1/Access | Spotted B-99 Colossus 16433 | -1/Access | Destroyed 10 combat bots 16475 | -1/Access | Lost 3 parts (1p1n1u) 16808 | -1/Access | Local machine network offline 16903 | -1/Access | Lost 3 parts (1p1u1w) 16906 | -1/Access | Discovered new exit (range 8) 16908 | -1/Access | Identified exit to Command 16908 | -1/Access | Entered Command 17135 | -1/Command | Spotted B-99 Colossus 17135 | -1/Command | Spotted Executioner 17135 | -1/Command | Spotted Executioner 17135 | -1/Command | Spotted Executioner 17135 | -1/Command | Spotted Executioner 17135 | -1/Command | Spotted Striker 17135 | -1/Command | Spotted Striker 17135 | -1/Command | Spotted Alpha 7 17135 | -1/Command | Spotted Alpha 7 17135 | -1/Command | Spotted B-99 Colossus 17138 | -1/Command | Discovered new exit (range 7) 17140 | *** | Escaped! Last Messages --------------- 17138_ A bubble of rippling energy engulfs the area. 17138_ Field strength at 47. 17138_ Slug penetrates Executioner. 17138_ Slug penetrates Wall. 17138_ Stasis field depleted. 17138_ Penetrated by Slug. 17138_ Slug penetrates Wall. 17138_ Slug penetrates B-99 Colossus. 17139_ Slug penetrates Wall. 17139_ Triggered Stasis Trap. 17139_ A bubble of rippling energy engulfs the area. 17139_ Field strength at 47. 17139_ Penetrated by Slug. 17139_ Stasis field depleted. 17139_ Executioner knocked back. 17139_ Penetrated by Slug. 17140_ Cep. Cloak Mesh destroyed. [Achievement: True Cogmind] Map ----- +----------------------------------------------------+ | ## ## ##########+#+###???????????????? | | #?????????????????? | | #?????????????????? | | #?????????????????? | | #?????????????????? | | #?????????????????? | | # ## ######?????????????????? | | ### ## #??????????????????????? | | ####??# # +??????????????????????? | | ??????# ## #??????????????????????? | | ??????## #### #??????????????????????? | | ?????## ##??#######??????????????????????? | | ?????# ##???????????????????????????????? | | ?????# ##??????????????????????????????? | | ????## #??????????????????????????????? | | ????# #???????????????????????????????? | | ?#### #???????????????????????????????? | | ?# #???????????????????????????????? | | ?# #?##############????????????????? | | ?# ##?# BB##???????????????? | | ?# "" #??# BB;########????????? | | ?# "" #??# ;E# #%; ###??????? | | ?# """ #??# E K 7 #??????? | | ?# """" # #??# ^% +??????? | | ?# !# #??# "" +??????? | | ?# # #??# @" E +??????? | | ?# """" + #??# % ^ % +??????? | | ?# """" # #??# ^ E K 7 #??????? | | ?# """" + #??# BB; # # # ###??????? | | ?# """" # #??# BB#########????????? | | ??? # #??# #????????????????? | | ??? # #??#########;;###????????????????? | | ?? * # #??????????####??????????????????? | | ?? # #????????????????????????????????? | | ?########## #????????????????????????????????? | | ??????????# #????????????????????????????????? | | ??????????# #####????????????????????????????????? | | ??????????# ?????????????????????????????????????? | | ??????????# ?????????????????????????????????????? | | ??????????# ?????????????????????????????????????? | | ??????????# ?????????????????????????????????????? | | ??????????# ?????????????????????????????????????? | | ?????????????????????????????????????????????????? | | ?????????????????????????????????????????????????? | | ?????????????????????????????????????????????????? | | ?????????????????????????????????????????????????? | | ?????????????????????????????????????????????????? | | ?????????????????????????????????????????????????? | | ?????????????????????????????????????????????????? | | ?????????????????????????????????????????????????? | +----------------------------------------------------+ Best States ------------- Heat Dissipation 105 Energy Generation 63 Energy Capacity 1175 Matter Stores 300 Matter Capacity 300 Sight Range 23 Robot Scan Range 20 Terrain Scan Range 18 Terrain Scan Density 10 ECM Strength 3 Cloak Strength 9 Power Amplification 40 Additional Mass Support 9 Base Temperature (-) 200 Armor Coverage 150 Resistance: KI 20 Resistance: I 20 Core Shielding 90 Propulsion Shielding 66 Weapon Shielding 90 Projectile Deflection 15 Phase Shifting 15 Evasion (%) 92 Targeting Accuracy 12 Core Analysis 8 Recoil Reduction 2 Offensive Hacking 42 Defensive Hacking 12 Authchip Count 2 Item Schematics ----------------- Surge Thruster | -8/Recycling | Hacked Cesium-ion Thruster | -8/Recycling | Hacked Imp. Hacking Suite | -6/Factory | Hacked Imp. System Shield | -6/Factory | Hacked Ovr. Coil Gun | -6/Factory | Scanalyzed Stasis Canceller | -6/Factory | Scanalyzed Imp. Terrain Scanner | -6/Factory | Scanalyzed Adv. Hacking Suite | -6/Factory | Hacked Imp. Weapon Shielding | -6/Factory | Extracted Terrain Scan Processor | -6/Factory | Scanalyzed Q-thruster | -6/Factory | Downloaded Structural Scanner | -6/Factory | Scanalyzed Disruptor Cannon | -6/Zion | Archive Lrn. Missile Launcher | -6/Zion | Archive Matter Neutralizer | -6/Zion | Archive Imp. Force Field | -6/Zion | Archive Nuclear Pulse Thruster | -6/Zion | Archive Imp. Transmission Jammer | -6/Zion | Archive Enh. Optical Array | -6/Zion | Archive Imp. Component Analysis Suite | -6/Zion | Archive Energy Well | -6/Zion | Archive Imp. Arc Projector | -6/Zion | Archive Imp. Medium Treads | -6/Zion | Archive Power Amplifier | -6/Zion | Archive KE Penetrator | -6/Zion | Archive Lance | -6/Zion | Archive Hvy. Plasma Cannon | -6/Zion | Archive Lgt. Neutrino Core | -5/Factory | Scanalyzed Imp. Plasma Cutter | -5/Factory | Scanalyzed Adv. Cooling System | -5/Factory | Scanalyzed Enh. Coil Gun | -5/Factory | Hacked Imp. Coolant Injector | -5/Factory | Hacked Mic. Nuclear Core | -5/Factory | Scanalyzed Mak. ECM Suite | -5/Factory | Scanalyzed Graphene Brace | -4/Factory | Scanalyzed Imp. Surge Thruster | -4/Factory | Scanalyzed Electron Diverter | -4/Factory | Scanalyzed Lrg. Storage Unit | -4/Factory | Scanalyzed Quantum Reactor | -4/Factory | Hacked Assault Drone Bay | -4/Zhirov | Free Exp. Heat Sink | -4/Zhirov | Free Exp. Optical Array | -4/Zhirov | Free Imp. Arc Thrower | -4/Zhirov | Free Enh. Nova Cannon | -3/Research | Hacked Adv. Transmission Jammer | -3/Research | Hacked Exp. Hacking Suite | -3/Research | Hacked Centrium Leg | -3/Research | Hacked Drone Bay | -3/Research | Extracted Adv. KE Penetrator | -3/Research | Extracted Centrium Heavy Armor Plating | -3/Research | Extracted Reflective Plating | -3/Research | Extracted Energy Filter | -3/Research | Extracted Imp. Field Recycling Unit | -3/Research | Extracted Imp. Linear Gravjet | -3/Research | Extracted Com. HERF Cannon | -3/Research | Extracted Nuclear Pulse Array | -3/Research | Extracted Exp. Energy Well | -3/Research | Extracted Imp. Reaction Control System | -3/Research | Extracted Particle Reactor | -3/Research | Extracted Antimatter Reactor | -3/Research | Extracted Lyr. Light Armor Plating | -3/Research | Extracted Hvy. Hardcell Cannon | -3/Quarantine | Archive Exp. Power Amplifier | -3/Quarantine | Archive Thunder Hammer | -3/Quarantine | Archive Hds. Centrium Wheel | -3/Quarantine | Archive Exp. Coolant Injector | -3/Quarantine | Archive Adv. Gravity Neutralizer | -3/Quarantine | Archive Exp. Matter Compressor | -3/Quarantine | Archive Adv. Remote Datajack | -3/Quarantine | Hacked Exp. Propulsion Shielding | -3/Quarantine | Hacked Adv. Matter Compressor | -3/Quarantine | Archive Exp. Terrain Scan Processor | -3/Quarantine | Archive Exp. Thermal Shield | -3/Quarantine | Archive Adv. Remote Shield | -3/Quarantine | Archive Tactical Quantum Warhead | -3/Quarantine | Archive Graviton Reactor | -3/Quarantine | Scanalyzed Adv. Cloaking Device | -2/Research | Hacked Exp. Signal Interpreter | -2/Research | Hacked ECM Suite | -2/Testing | Scanalyzed Exp. Cooling System | -2/Protoforge | Archive Robot Schematics ------------------ L-41 Fighter | -6/Zion | Archive E-15 Imp | -6/Zion | Archive H-66 Slayer | -6/Zion | Archive C-57 Dissector | -6/Zion | Archive A-15 Conveyor | -3/Quarantine | Archive Fabricated ------------ Cesium-ion Thruster | x2 | -6/Factory | Authchip Adv. Hacking Suite | x1 | -6/Factory | Authchip Q-thruster | x2 | -6/Factory | Authchip Adv. Hacking Suite | x1 | -6/Factory Q-thruster | x2 | -5/Factory | Authchip Adv. Hacking Suite | x1 | -5/Factory | Authchip Q-thruster | x2 | -5/Factory | Authchip Q-thruster | x2 | -5/Factory Lgt. Neutrino Core | x1 | -4/Factory Quantum Reactor | x2 | -3/Research | Authchip Adv. Cloaking Device | x2 | -2/Research | Authchip Exp. Signal Interpreter | x1 | -2/Research X-87 Electro | x2 | -2/Protoforge | Preloaded Repaired ---------- Cesium-ion Thruster | 52% | -6/Factory Cesium-ion Thruster | 12% | -6/Factory Nuclear Pulse Thruster | 36% | -6/Factory Lgt. Fission Core | 16% | -6/Factory Nuclear Pulse Thruster | 16% | -5/Factory Lgt. Fission Core | 28% | -5/Factory Lgt. Angular Momentum Engine | 23% | -4/Factory Alien Tech Used ----------------- Integrated Dissipator Phase Armor Phase Redirector Subatomic Replicator Sigix Broadsword Matter Drive Dimensional Node Initializer Supercharged TR Concept Nanofilaments [Tensile] Transdimensional Reconstructor Achievements -------------- True Cogmind Challenges ------------ None Game ------ Seed ImprovedVortexRecalibrator Manual? 0 Play Time 10:49:45 Cumulative 373.2 hours Start 2025.07.24 @ 15:59:04 End 2025.07.25 @ 20:15:31 Sessions 5 Manual Loads 0 Difficulty Rogue Special Mode None Game No. 175 Rogue 175 Adventurer 0 Explorer 0 Win Type 0 Total 25 Types 10/1/5/1/5/1/0/1/0/1 Lore% 91 Gallery% 81 Achievement% 77 Wizard Run 0 Options --------- Layout 1 ASCII 0 Keyboard 0 Movement Numpad Keybinds 0 Fullscreen 1 Font 24/Smallcaps Map View 50x35 Zoom Use 0% Tactical HUD 1 Map Filters NONE Filters NONE Steam 1 RUN: a6b4e0ea-bfee-4449-93c6-e3689164fb33